Workbook

Sheet Reference
A3: Tab Color Coding
A4: Pro Forma and Accrual to Cash
A5: Sumary Sheet (Aggregation of Pro Forma, ATC, and Risk Models)
A6: Revenue Model
A7: Expense Model
A8: Other
A10: Cell Color Coding
A11: SME Input
A12: Worksheet Formula
A13: @Risk Output
A14: Linked to Summary
A15: @Risk Formula

Sheet Src Proforma
E2: =TRIM(CONCATENATE(A2,B2,C2,D2)) ->  | F2: FY23 | G2: FY24 | H2: FY25
F3: $ (000's) | G3: $ (000's) | H3: $ (000's)
E4: Composite Revenue | F4: 2327616.872 | G4: 2376037.018 | H4: 2385736.752
E5: Non-Slice Revenue | F5: -295753.7388 | G5: -331138.4623 | H5: -332843.0781
E6: Slice | F6: 0 | G6: 0 | H6: 0
E7: Tier 2 | F7: 48972.95555 | G7: 114786.9352 | H7: 205792.0064
E8: Load Shaping Revenue | F8: 24159.61022 | G8: 57930.7343 | H8: 63974.99495
E9: Demand Revenue | F9: 55945.74092 | G9: 60246.80403 | H9: 62636.25616
E10: Irrigation Rate Discount | F10: -20509.48953 | G10: -21770.16457 | H10: -21770.16457
E11: Low Density Discount | F11: -38109.30302 | G11: -37700.68594 | H11: -38531.67443
E12: RSS (Non-Federal)/ Other | F12: 1051.728 | G12: 964 | H12: 944
E13: PF customers (TRM) sub-total | F13: 2103374.375 | G13: 2219356.179 | H13: 2325939.092
E14: New Resource Firm Power | F14: 0 | G14: 0 | H14: 0
E15: NR sub-total | F15: 0 | G15: 0 | H15: 0
E16: DSI - Alcoa | F16: 0
E17: DSI - Port Townsend | F17: 4279.35336
E18: DSIs sub-total | F18: 4279.35336 | G18: 4000.648247 | H18: 3987.854522
E19: FPS Other | F19: 8577.14688 | G19: 9003.684432 | H19: 9206.058206
E20: FPS sub-total | F20: 8577.14688 | G20: 9003.684432 | H20: 9206.058206
E21: Firm Surplus Sale (Rate Case Only and includes Tier 2 sale) | F21: 0 | G21: 201536 | H21: 136010
E22: Committed sales (TF) | F22: 42840.659 | G22: 18456 | H22: 18456
E23: Balancing sales (unadjusted) | F23: 690907.8996 | G23: 355926.6126 | H23: 354972.9239
E24: Forward DSI and other secondary sales | F24: 27265.815 | G24: 0 | H24: 0
E25: Cal ISO sales | F25: 0 | G25: 62093.78633 | H25: 65712.75265
E26: Forward DSI sale | F26: 0 | G26: 0 | H26: 0
E27: Balancing sales | F27: 761014.3736 | G27: 436476.399 | H27: 439141.6766
E28: Short-term market sales sub-total | F28: 761014.3736 | G28: 638012.399 | H28: 575151.6766
E29: PG&E (Wind Energy Exchange Delivery to BPA) 08PB-11984 | F29: 0 | G29: 0 | H29: 0
E30: PG&E (Wind Energy Exchange Delivery to PG&E) 08PB-11984 | F30: 0 | G30: 0 | H30: 0
E31: Other Locational/Seasonal Exchange | F31: 0 | G31: 0 | H31: 0
E32: Avista (WNP-3 Exchange)DE-MS79-85BP92186 | F32: 0 | G32: 0 | H32: 0
E33: WNP3 Settlement | F33: 0 | G33: 0 | H33: 0
E34: Long Term Contractual Obligations sub-total | F34: 0 | G34: 0 | H34: 0
E35: Canadian Entitlement Return for Canada (Total) | F35: 0 | G35: 0 | H35: 0
E36: Canadian Entitlement Return | F36: 0 | G36: 0 | H36: 0
E37: Miscellaneous Credits | F37: 0 | G37: 0 | H37: 0
E38: Revenues from Slice Product Conversion | F38: 0 | G38: 0 | H38: 0
E39: Slice True up | F39: 8336.836877 | G39: 0 | H39: 0
E40: Surcharges (Spill, Reserves) | F40: 0 | G40: 0 | H40: 0
E41: Liquidated Damages | F41: 0 | G41: 1070.472 | H41: 1070.472
E42: Load Shaping True up | F42: 0 | G42: 0 | H42: 0
E43: PRSC Net Credit | F43: 0 | G43: 0 | H43: 0
E44: Other Sales sub-total | F44: 8336.836877 | G44: 1070.472 | H44: 1070.472
E45: Gross Sales (400001) | F45: 2885582.086 | G45: 2870372.91 | H45: 2914284.682
E46: Bookouts | F46: 0 | G46: 0 | H46: 0
E47: Bookout adjustment to Sales (400001) | F47: 0 | G47: 0 | H47: 0
E48: Lookback Adjustments | F48: 0 | G48: 0 | H48: 0
E49: Provisions for Rate Refunds (449101) | F49: 0 | G49: 0 | H49: 0
E50: GTA Delivery charge | F50: 3100.001 | G50: 3100.001 | H50: 3100.001
E51: Energy Efficiency Revenues | F51: 300 | G51: 0 | H51: 0
E52: Financial Swap Revenues | F52: 0 | G52: 0 | H52: 0
E53: Upper Baker revenues | F53: 401.6097086 | G53: 523.25561 | H53: 509.9437328
E54: Miscellaneous US Bureau of Reclamation Revenues | F54: 0 | G54: 0 | H54: 0
E55: Miscellaneous US Corps of Engineers Revenues | F55: 0 | G55: 0 | H55: 0
E56: Irrigation Pumping Power | F56: 1221.197813 | G56: 1202.802037 | H56: 1202.802037
E57: Reserve Energy | F57: 10327.17808 | G57: 10358.34008 | H57: 10358.34008
E58: USBR Owyhee Wheeling Project | F58: 1670.171667 | G58: 1607.602667 | H58: 1607.602667
E59: Downstream Benefits | F59: 7443.245667 | G59: 7438.296 | H59: 7438.296
E60: Downstream Benefits - Financial accrual (redist to FERC payment) | F60: 0 | G60: 0 | H60: 0
E61: Downstream Benefits (ASPRJ Bureau) | F61: 0 | G61: 0 | H61: 0
E62: Downstream Benefits (ASPRJ CORP) | F62: 0 | G62: 0 | H62: 0
E63: Downstream Benefits subtotal | F63: 7443.245667 | G63: 7438.296 | H63: 7438.296
E64: Miscellaneous Revenues (400002) | F64: 24463.40393 | G64: 24230.29739 | H64: 24216.98551
E65: Balancing Reserve Capacity Balancing Reserve Capacity | F65: 49830.72 | G65: 60978.72372 | H65: 62355.38453
E66: ACS Risk Share | F66: 0 | G66: 0 | H66: 0
E67: Risk Mitigation Tool | F67: 0 | G67: 0 | H67: 0
E68: Operating Reserve - Spinning | F68: 21872.88496 | G68: 27100.31136 | H68: 27702.43036
E69: Operating Reserve - Supplemental | F69: 14283.77989 | G69: 16642.51486 | H69: 17012.2809
E70: Operating Reserve - Spinning Adjustment for WNP-3 Settlement Agreement | F70: 0 | G70: 0 | H70: 0
E71: Operating Reserve - Supplemental Adjustment for WNP-3 Settlement Agreement | F71: 0 | G71: 0 | H71: 0
E72: Energy Imbalance | F72: 0 | G72: 0 | H72: 0
E73: Generation Imbalance | F73: 0 | G73: 0 | H73: 0
E74: Energy Imbalance Persistent Deviation | F74: 0 | G74: 0 | H74: 0
E75: Generation Imbalance Persistent Deviation | F75: 0 | G75: 0 | H75: 0
E76: FFI Penalty | F76: 0 | G76: 0 | H76: 0
E77: Imbalance Adjustment for Third-Party Deployed Energy | F77: 0 | G77: 0 | H77: 0
E78: Settlement Annual Budget Adjustment | F78: 0 | G78: 0 | H78: 0
E79: Synchronous Condensing | F79: 922.844 | G79: 1291.75716 | H79: 1291.75716
E80: Generation Dropping | F80: 364.955 | G80: 552.68568 | H80: 552.68568
E81: Redispatch | F81: 370 | G81: 332.14728 | H81: 332.14728
E82: COE/Reclamation Network/Delivery Facilities Segmentation | F82: 9502 | G82: 705.99996 | H82: 705.99996
E83: Station Service | F83: 2295.181 | G83: 3306.94404 | H83: 3306.94404
E84: Operating Reserve Energy | F84: 727.932 | G84: 0 | H84: 0
E85: 168hr in-kind Delay Losses Service | F85: 0 | G85: 0 | H85: 0
E86: Inter-Business Unit / Gen Inputs for Ancillary and Other Services (400003) | F86: 100170.2969 | G86: 110911.0841 | H86: 113259.6299
E87: 4(h)(10)(c) | F87: 97995.3429 | G87: 111288.0501 | H87: 111456.1073
E88: Colville and Spokane Settlements | F88: 4600 | G88: 4600 | H88: 4600
E89: Treasury Credits (400005 and 400006) | F89: 102595.3429 | G89: 115888.0501 | H89: 116056.1073
E90: TOTAL OPERATING REVENUES | F90: =SUM(F89,F86,F64,F49,F47,F45) -> 3112811.13 | G90: =SUM(G89,G86,G64,G49,G47,G45) -> 3121402.342 | H90: 3167817.404
E91: Augmentation Purchases | F91: 0 | G91: 0 | H91: 0
E92: Augmentation Power Purchase total | F92: 0 | G92: 0 | H92: 0
E93: Balancing Purchases (unadjusted) | F93: 21802.57979 | G93: 55077.69243 | H93: 45875.19112
E94: (Transmission re-dispatch for Gen Inputs adjustment) | F94: 0 | G94: 332.14727 | H94: 332.14727
E95: Balancing Purchases | F95: 21802.57979 | G95: 55409.8397 | H95: 46207.33839
E96: SILS Power Purchases (within year included in balancing purchases) | F96: 0 | G96: 25191.08628 | H96: 24594.38856
E97: Committed Purchases (TF) | F97: 38252.732 | G97: 0 | H97: 0
E98: Non Treaty Storage Agreement expense (TF) | F98: 0 | G98: 0 | H98: 0
E99: Libby Coordination Agreement (TF) | F99: 0 | G99: 0 | H99: 0
E100: Balancing Power Purchase sub-total | F100: =SUM(F95,F97) -> 60055.31179 | G100: 80600.92599 | H100: 70801.72695
E101: Non-Treaty Storage Agreement Expense - slice portion | F101: 0 | G101: 0 | H101: 0
E102: Libby Coordination Agreement Expense - slice portion | F102: 0 | G102: 0 | H102: 0
E103: Rocky Brook Power Purchase | F103: 0 | G103: 0 | H103: 0
E104: Tier 2 Short-Term Power Purchase | F104: 43245.56575 | G104: 0 | H104: 0
E105: Tier 2 Short-Term Forecasted Power Purchase | F105: 0 | G105: 104396.9314 | H105: 191890.8611
E106: Tier 2 Load Growth Term Power Purchase12PM-10174 | F106: 0 | G106: 0 | H106: 0
E107: Tier 2 Load Growth Term Power Purchase17PM-13974 | F107: 0 | G107: 7474.054123 | H107: 8522.881647
E108: Tier 2 Load Growth Forecasted Power Purchase | F108: 3795.000259 | G108: 0 | H108: 0
E109: Tier 2 Vintage Power Purchase12PM-10174 | F109: 0 | G109: 0 | H109: 0
E110: Tier 2 Vintage Power Purchase13PM-11136 | F110: 0 | G110: 0 | H110: 0
E111: Tier 2 VintageForecast Power Purchase | F111: 0 | G111: 0 | H111: 0
E112: Tier 2 Vintage Losses 201417PM-13974 | F112: 0 | G112: 0 | H112: 0
E113: Tier 2 Vintage Losses 201617PM-13974 | F113: 0 | G113: 0 | H113: 0
E114: Tier 2 VintageForecast Power Purchase | F114: 0 | G114: 0 | H114: 0
E115: Tier 2 Purchases | F115: =SUM(F104:F114) -> 47040.56601 | G115: 111870.9855 | H115: 200413.7427
E116: Foote Creek I Wind Project (PacifiCorp)94MS-94375 | F116: 0 | G116: 0 | H116: 0
E117: Foote Creek I Wind Project (Storage for EWEB Amount)94MS-94375 | F117: 0 | G117: 0 | H117: 0
E118: Foote Creek I Wind Project (Transmission for EWEB Amount)94MS-94375 | F118: 0 | G118: 0 | H118: 0
E119: Foote Creek I Wind Project (EWEB)94MS-94375 | F119: 0 | G119: 0 | H119: 0
E120: Foote Creek I Wind Project (Settlement Credit to EWEB)15PM-12909 | F120: 0 | G120: 0 | H120: 0
E121: Foote Creek IV Wind Project (SeaWest Windpower Inc.)00PB-10652 | F121: 0 | G121: 0 | H121: 0
E122: Foote Creek IV Wind Project (PacifiCorp) (Storage, Generation Control)00PB-10708 | F122: 0 | G122: 0 | H122: 0
E123: Foote Creek IV Wind Project (PacifiCorp) (UFT)00PB-10708 | F123: 0 | G123: 0 | H123: 0
E124: Condon Wind Project (Condon Wind Power, LLC for energy) 00PB-10692 | F124: 0 | G124: 0 | H124: 0
E125: Condon Wind Project (Condon Wind Power, LLC for generation imbalance) | F125: 0 | G125: 0 | H125: 0
E126: Condon Wind Project (Condon Wind Power, LLC for VERBS) 00PB-10692 | F126: 0 | G126: 0 | H126: 0
E127: Stateline Wind Project (Exelon Generation Company, LLC for energy) 01PB-10761 | F127: 9361.762517 | G127: 9649.089328 | H127: 9835.701744
E128: Stateline Wind Project (Exelon Generation Company, LLC for monthly true-up aka generation imbalance) | F128: 0 | G128: 0 | H128: 0
E129: Stateline Wind Project (Exelon Generation Company, LLC for VERBS) 01PB-10761 | F129: 661.8744 | G129: 661.8744 | H129: 661.8744
E130: Klondike Wind Project (PPM/Northwestern Wind Power LLC)02PB-11093 | F130: 0 | G130: 0 | H130: 0
E131: Klondike Wind Project Tx Loss Adjustment/Gen Imbalance02PB-11093 | F131: 0 | G131: 0 | H131: 0
E132: Ashland Solar 00PB-10651 | F132: 0 | G132: 0 | H132: 0
E133: Fourmile Hill Geothermal (Calpine Siskiyou Partners)93956 | F133: 0 | G133: 0 | H133: 0
E134: Risk adjustment for Foote Creek I and IV, Condon, Stateline and Klondike I for energy output above critical, generation imbalance and contractual true-up costs. | F134: 10108.72206 | G134: 6852.152727 | H134: 7340.868038
E135: Renewable Purchases - general (excl. Klondike III) | F135: =SUM(F116:F129) -> 10023.63692 | G135: 17163.11646 | H135: 17838.44418
E136: Klondike III Wind Project07PB-11860 | F136: 6755.8854 | G136: 6755.8854 | H136: 6755.8854
E137: Klondike III Wind Project (Monthly True Up)07PB-11860 | F137: 0 | G137: 0 | H137: 0
E138: Klondike III Wind Project (Wind Balancing Service)07PB-11860 | F138: 0 | G138: 300 | H138: 300
E139: Critical Wind Quantity Expense Adjustment for Klondike III | F139: 2578.755627 | G139: 1747.998145 | H139: 1872.670418
E140: Renewable Purchases - Klondike III | F140: =SUM(F136:F139) -> 9334.641027 | G140: 8803.883545 | H140: 8928.555818
E141: Critical Wind Quantity Expense Adjustment | F141: 0 | G141: 0 | H141: 0
E142: Total Renewable Purchases | F142: 31934.07389 | G142: 25967 | H142: 26767
E143: Power Purchases | F143: =SUM(F92,F100,F115) -> 107095.8778 | G143: =SUM(G92,G100,G115) -> 192471.9115 | H143: 271215.4697
E144: Columbia Generating Station | F144: 305499 | G144: 296476.712 | H144: 304747.847
E145: Bureau Of Reclamation | F145: 152963 | G145: 154364 | H145: 152963
E146: Corps of Engineers | F146: 252557 | G146: 265146.0001 | H146: 252557
E147: CRFM Studies | F147: 3618.75396 | G147: 9349.187 | H147: 3618.7538
E148: Long-Term Contract Generating Projects | F148: 18923.25697 | G148: 16036.31103 | H148: 17123.25699
E149: Operating Generation | F149: 733561.0109 | G149: 741372.2102 | H149: 731009.8578
E150: Colville Generation Settlement | F150: 22000.00002 | G150: 22000 | H150: 22000
E151: Spokane Generation Settlement | F151: 5500 | G151: 5749.25004 | H151: 5499.99996
E152: Operating Generation Settlements and Other Payments | F152: 27500.00002 | G152: 27749.25004 | H152: 27499.99996
E153: Trojan Decommissioning | F153: 1199.99999 | G153: 1199.99996 | H153: 1199.99996
E154: WNP-1&3 Decommissioning | F154: 1174.99997 | G154: 1140.99997 | H154: 1174.99999
E155: Non-Operating Generation | F155: 2374.99996 | G155: 2340.99993 | H155: 2374.99995
E156: PNCA Headwater Benefits | F156: 2691.00003 | G156: 3099.99998 | H156: 3099.99998
E157: Purchases for Service at Tier 2 Rates | F157: 47040.56601 | G157: 111870.9855 | H157: 47040.56646
E158: Other Power Purchases (e.g. Short term) | F158: 60055.31179 | G158: 80600.92599 | H158: 38087.71867
E159: Gross Contracted Power Purchases (excluding bookout adjustments) <Note 1 | F159: 109786.8778 | G159: 195571.9115 | H159: 274315.4696
E160: Bookout Adjustments to Contracted Power Purchases <Note 1 | F160: 0 | G160: 0 | H160: 0
E161: Augmentation Power Purchases | F161: 0 | G161: 0 | H161: 0
E162: Augmentation Power Purchases | F162: 0 | G162: 0 | H162: 0
E163: Residential Exchange Program | F163: 266695.722 | G163: 274777.3136 | H163: 265335.6434
E164: Other Settlements | F164: 0 | G164: 0 | H164: 0
E165: Exchanges & Settlements | F165: 266695.722 | G165: 274777.3136 | H165: 265335.6434
E166: Renewable Conservation Rate Credit | F166: 0 | G166: 0 | H166: 0
E167: Renewables | F167: 29466.99999 | G167: 25967 | H167: 29467.00004
E168: Renewable Generation | F168: 29466.99999 | G168: 25967 | H168: 29467.00004
E169: DSM Technology | F169: 0 | G169: 0 | H169: 0
E170: Conservation Purchases | F170: 67356.79997 | G170: 69027.249 | H170: 67356.79999
E171: Conservation Infrastructure | F171: 27300.00007 | G171: 26044.06397 | H171: 27299.99998
E172: Low Income Weatherization & Tribal | F172: 6005.00004 | G172: 6005 | H172: 6005
E173: Energy Efficiency Development | F173: 300 | G173: 0 | H173: 7999.99999
E174: Legacy | F174: 590.00001 | G174: 589.99999 | H174: 589.99999
E175: Market Transformation | F175: 11799.99996 | G175: 11800.00001 | H175: 11800.00001
E176: Conservation Rate Credit (CRC) | F176: 0 | G176: 0 | H176: 0
E177: Distributed Energy Resources | F177: 215.00004 | G177: 215.00004 | H177: 215
E178: Generation Conservation | F178: 113566.8001 | G178: 113681.313 | H178: 121266.8
E179: Power System Generation Sub-Total | F179: 1282952.411 | G179: 1381459.998 | H179: 1526193.381
E180: Information Technology | F180: 450.336 | G180: 2376.12996 | H180: 2473.11504
E181: Generation Project Coordination | F181: 4258.71002 | G181: 4443.39016 | H181: 4571.24236
E182: Asset Mgmt Enterprise Svcs | F182: 104.52408 | G182: 0 | H182: 0
E183: Slice Implementation | F183: 505.35554 | G183: 608.14326 | H183: 632.18487
E184: Power Services System Operations | F184: =SUM(F180:F183) -> 5318.92564 | G184: =SUM(G180:G183) -> 7427.66338 | H184: 7676.54227
E185: Operations Scheduling | F185: 9274.92782 | G185: 9504.70152 | H185: 9945.29451
E186: Operations Planning | F186: 9523.79411 | G186: 9739.17236 | H186: 10101.94377
E187: Power Services Scheduling | F187: =SUM(F185:F186) -> 18798.72193 | G187: =SUM(G185:G186) -> 19243.87388 | H187: 20047.23828
E188: Commercial Enterprise Svcs | F188: 5304.44668 | G188: 0 | H188: 0
E189: Operations Enterprise Svcs | F189: 1329.75151 | G189: 0 | H189: 0
E190: EIM Internal Support | F190: 0 | G190: 0 | H190: 0
E191: Power R&D | F191: 2526.62496 | G191: 3537.274944 | H191: 3537.274944
E192: Sales & Support | F192: 15816.69322 | G192: 17870.54847 | H192: 18429.28539
E193: Strategy, Finance & Risk Mgmt | F193: 0 | G193: 0 | H193: 0
E194: Executive & Administrative Services | F194: 0 | G194: 0 | H194: 0
E195: Conservation Support | F195: 6306.43594 | G195: 7044.53786 | H195: 7309.19607
E196: Power Services Marketing and Business Support | F196: =SUM(F188:F195) -> 31283.95231 | G196: =SUM(G188:G195) -> 28452.36127 | H196: 29275.7564
E197: Grid Mod | F197: 1351.60524 | G197: 0 | H197: 0
E198: Power Internal Support | F198: 19962.4596 | G198: 28410.24804 | H198: 27811.94113
E199: Operations | F199: =SUM(F197:F198) -> 21314.06484 | G199: =SUM(G197:G198) -> 28410.24804 | H199: 27811.94113
E200: Power Non-Generation Operations | F200: =SUM(F184,F187,F196,F199) -> 76715.66472 | G200: =SUM(G184,G187,G196,G199) -> 83534.14657 | H200: 84811.47808
E201: PS Transmission & Ancillary Services | F201: 94998.38661 | G201: 94949.31786 | H201: 94034.13074
... 48 more rows

Sheet Risk Summary
U2: Outputs for Charting, etc
C3: FY23 | D3: FY23 | E3: FY24 | F3: FY24 | G3: FY25 | H3: FY25 | J3: =D3 -> FY23 | K3: =F3 -> FY24 | L3: =H3 -> FY25 | P3: =J3 -> FY23 | Q3: =K3 -> FY24 | R3: =L3 -> FY25 | S3: =Q3&" and "&R3 -> FY24 and FY25 | T3: Chart Names | U3: =Q3 -> FY24 | V3: =R3 -> FY25 | W3: =S3 -> FY24 and FY25
C4: Forecast | D4: Modeled | E4: Forecast | F4: Modeled | G4: Forecast | H4: Modeled | J4: Delta | K4: Delta | L4: Delta | P4: Output
B5: Revenue
B6: Revenue delta from CGS Re-fuel outage duration (delta) | D6: ='CGS Refueling'!B5 ->  | F6: ='CGS Refueling'!C5 ->  | H6: ='CGS Refueling'!D5 ->  | J6: =D6-C6 ->  | K6: =F6-E6 ->  | L6: =H6-G6 ->  | P6: =_xll.RiskOutput($T6&" / "&P$3)+D6 ->  | Q6: =_xll.RiskOutput($T6&" / "&Q$3)+F6 ->  | R6: =_xll.RiskOutput($T6&" / "&R$3)+H6 ->  | S6: =_xll.RiskOutput($T6&" / "&S$3)+Q6+R6 ->  | T6: CGS Outage Revenue Impact
B7: Expense
B8: Columbia Generating Station | C8: =IF(CategoryColumn="","",VLOOKUP(CategoryColumn,ProForma,MATCH(YearRow,ProFormaYears,0)+1,FALSE)) -> 305499 | D8: =CGS!J4 ->  | E8: =IF(CategoryColumn="","",VLOOKUP(CategoryColumn,ProForma,MATCH(YearRow,ProFormaYears,0)+1,FALSE)) -> 296476.712 | F8: =CGS!K4 ->  | G8: =IF(CategoryColumn="","",VLOOKUP(CategoryColumn,ProForma,MATCH(YearRow,ProFormaYears,0)+1,FALSE)) -> 304747.847 | H8: =CGS!L4 ->  | J8: =IF(COUNT(C8:D8)>0,D8-C8,"") ->  | K8: =IF(COUNT(E8:F8)>0,F8-E8,"") ->  | L8: =IF(COUNT(G8:H8)>0,H8-G8,"") ->  | P8: =_xll.RiskOutput($T8&" / "&P$3)+D8 ->  | Q8: =_xll.RiskOutput($T8&" / "&Q$3)+F8 ->  | R8: =_xll.RiskOutput($T8&" / "&R$3)+H8 ->  | S8: =_xll.RiskOutput($T8&" / "&S$3)+Q8+R8 ->  | T8: CGS Total O&M
B9: Bureau Of Reclamation | C9: =IF(CategoryColumn="","",VLOOKUP(CategoryColumn,ProForma,MATCH(YearRow,ProFormaYears,0)+1,FALSE)) -> 152963 | D9: ='Corps & Bureau O&M'!D22 ->  | E9: 154364 | F9: ='Corps & Bureau O&M'!F22 ->  | G9: 152963 | H9: ='Corps & Bureau O&M'!H22 ->  | J9: =IF(COUNT(C9:D9)>0,D9-C9,"") ->  | K9: =IF(COUNT(E9:F9)>0,F9-E9,"") ->  | L9: =IF(COUNT(G9:H9)>0,H9-G9,"") ->  | P9: =_xll.RiskOutput($T9&" / "&P$3)+SUM(D9:D10) ->  | Q9: =_xll.RiskOutput($T9&" / "&Q$3)+SUM(F9:F10) ->  | R9: =_xll.RiskOutput($T9&" / "&R$3)+SUM(H9:H10) ->  | S9: =_xll.RiskOutput($T9&" / "&S$3)+Q9+R9 ->  | T9: Corps and Reclamation O&M
B10: Corps of Engineers | C10: =IF(CategoryColumn="","",VLOOKUP(CategoryColumn,ProForma,MATCH(YearRow,ProFormaYears,0)+1,FALSE)) -> 252557 | D10: ='Corps & Bureau O&M'!D5 ->  | E10: 265146.0001 | F10: ='Corps & Bureau O&M'!F5 ->  | G10: 252557 | H10: ='Corps & Bureau O&M'!H5 -> 
B11: Conservation Purchases | C11: =IF(CategoryColumn="","",VLOOKUP(CategoryColumn,ProForma,MATCH(YearRow,ProFormaYears,0)+1,FALSE)) -> 67356.79997 | D11: =_xll.RiskPert(C11*0.95,C11,C11*1.025) ->  | E11: 69027.249 | F11: =_xll.RiskPert(E11*0.9,E11,E11*1.05) ->  | G11: 67356.79999 | H11: =_xll.RiskPert(G11*0.9,G11,G11*1.05) ->  | P11: =_xll.RiskOutput($T11&" / "&P$3)+D11 ->  | Q11: =_xll.RiskOutput($T11&" / "&Q$3)+F11 ->  | R11: =_xll.RiskOutput($T11&" / "&R$3)+H11 ->  | S11: =_xll.RiskOutput($T11&" / "&S$3)+Q11+R11 ->  | T11: Conservation Acquisition | U11: =_xll.RiskOutput(,X11,1)+F11+F12 ->  | V11: =_xll.RiskOutput(,X11,2)+H11+H12 ->  | W11: =_xll.RiskOutput(,X11,3)+U11+V11 ->  | X11: Conservation Acq. & Weatherization
B12: Low Income Weatherization & Tribal | C12: =IF(CategoryColumn="","",VLOOKUP(CategoryColumn,ProForma,MATCH(YearRow,ProFormaYears,0)+1,FALSE)) -> 6005.00004 | D12: =_xll.RiskPert(C12*0.975,C12,C12*1.025) ->  | E12: 6005 | F12: =_xll.RiskPert(E12*0.95,E12,E12*1.05) ->  | G12: 6005 | H12: =_xll.RiskPert(G12*0.95,G12,G12*1.05) ->  | P12: =_xll.RiskOutput($T12&" / "&P$3)+D12 ->  | Q12: =_xll.RiskOutput($T12&" / "&Q$3)+F12 ->  | R12: =_xll.RiskOutput($T12&" / "&R$3)+H12 ->  | S12: =_xll.RiskOutput($T12&" / "&S$3)+Q12+R12 ->  | T12: Low Income Weatherization & Tribal
B13: 3rd Party GTA Wheeling | C13: =IF(CategoryColumn="","",VLOOKUP(CategoryColumn,ProForma,MATCH(YearRow,ProFormaYears,0)+1,FALSE)) -> 83243.10501 | D13: =_xll.RiskPert(C13*0.98,C13,C13*1.01) ->  | E13: 91278.282 | F13: =_xll.RiskPert(E13*0.96,E13,E13*1.02) ->  | G13: 92597.799 | H13: =_xll.RiskPert(G13*0.96,G13,G13*1.03) ->  | P13: =_xll.RiskOutput($T13&" / "&P$3)+D13 ->  | Q13: =_xll.RiskOutput($T13&" / "&Q$3)+F13 ->  | R13: =_xll.RiskOutput($T13&" / "&R$3)+H13 ->  | S13: =_xll.RiskOutput($T13&" / "&S$3)+Q13+R13 ->  | T13: 3rd Party GTA Wheeling
B14: PS - 3rd Party Trans & Ancillary Svcs | C14: 3300 | D14: =_xll.RiskPert(C14,C14,C14*1.025) ->  | E14: =IF(CategoryColumn="","",VLOOKUP(CategoryColumn,ProForma,MATCH(YearRow,ProFormaYears,0)+1,FALSE)) -> 3299.99999 | F14: =_xll.RiskPert(E14,E14,E14*1.05^2) ->  | G14: 3299.99998 | H14: =_xll.RiskPert(G14,G14,G14*1.05^3) ->  | P14: =_xll.RiskOutput($T14&" / "&P$3)+D14 ->  | Q14: =_xll.RiskOutput($T14&" / "&Q$3)+F14 ->  | R14: =_xll.RiskOutput($T14&" / "&R$3)+H14 ->  | S14: =_xll.RiskOutput($T14&" / "&S$3)+Q14+R14 ->  | T14: 3rd Party Trans & Ancillary Svcs
B15: Fish & Wildlife | C15: 244918.8839 | D15: ='F&W Expense'!G6 ->  | E15: 269234.6473 | F15: ='F&W Expense'!I6 ->  | G15: 268865.202 | H15: ='F&W Expense'!K6 ->  | J15: =IF(COUNT(C15:D15)>0,D15-C15,"") ->  | K15: =IF(COUNT(E15:F15)>0,F15-E15,"") ->  | L15: =IF(COUNT(G15:H15)>0,H15-G15,"") ->  | P15: =_xll.RiskOutput($T15&" / "&P$3)+D15 ->  | Q15: =_xll.RiskOutput($T15&" / "&Q$3)+F15 ->  | R15: =_xll.RiskOutput($T15&" / "&R$3)+H15 ->  | S15: =_xll.RiskOutput($T15&" / "&S$3)+Q15+R15 ->  | T15: F&W Direct Program
B16: USF&W Lower Snake Hatcheries | C16: 28999.99999 | D16: ='F&W Expense'!G24 ->  | E16: 32765.00001 | F16: ='F&W Expense'!I24 ->  | G16: 32764.99998 | H16: ='F&W Expense'!K24 ->  | J16: =IF(COUNT(C16:D16)>0,D16-C16,"") ->  | K16: =IF(COUNT(E16:F16)>0,F16-E16,"") ->  | L16: =IF(COUNT(G16:H16)>0,H16-G16,"") ->  | P16: =_xll.RiskOutput($T16&" / "&P$3)+D16 ->  | Q16: =_xll.RiskOutput($T16&" / "&Q$3)+F16 ->  | R16: =_xll.RiskOutput($T16&" / "&R$3)+H16 ->  | S16: =_xll.RiskOutput($T16&" / "&S$3)+Q16+R16 ->  | T16: F&W Lower Snake Hatcheries
B17: Interest Expense | C17: 276292.1644 | D17: =_xll.RiskNormal(C17,1700) ->  | E17: 273661.1204 | F17: =_xll.RiskNormal(E17,2200) ->  | G17: 252066.0148 | H17: =_xll.RiskNormal(G17,3800) ->  | J17: =IF(COUNT(C17:D17)>0,D17-C17,"") ->  | K17: =IF(COUNT(E17:F17)>0,F17-E17,"") ->  | L17: =IF(COUNT(G17:H17)>0,H17-G17,"") -> 
B18: Interest Income | C18: -8700 | D18: =_xll.RiskUniform(C18,0) ->  | E18: -14715 | F18: =_xll.RiskUniform(E18,0) ->  | G18: -17519 | H18: =_xll.RiskUniform(G18,0) ->  | P18: =_xll.RiskOutput($T18&" / "&P$3)+SUM(D18:D18) ->  | Q18: =_xll.RiskOutput($T18&" / "&Q$3)+SUM(F18:F18) ->  | R18: =_xll.RiskOutput($T18&" / "&R$3)+SUM(H18:H18) ->  | S18: =_xll.RiskOutput($T18&" / "&S$3)+Q18+R18 ->  | T18: Interest and Appropriations
B20: Total Revenue Delta | C20: Increases Net Revenue | J20: =SUM(J6:J6) ->  | K20: =SUM(K6:K6) ->  | L20: =SUM(L6:L6) -> 
B21: RevenueSlice True-up | C21: Increases Net Revenue | J21: =0*Slice0*-1 -> 0 | K21: =0*Slice1*-1 -> 0 | L21: =0*Slice2*-1 -> 0
B22: Base Expenses Delta | C22: Decreases Net Revenue | J22: =SUM(J8:J18) ->  | K22: =SUM(K8:K18) ->  | L22: =SUM(L8:L18) -> 
B23: Expense Slice True-up | C23: Decreases Net Revenue | J23: =(J22*Slice0*-1) ->  | K23: =(K22*Slice1*-1) ->  | L23: =(L22*Slice2*-1) -> 
B25: Revenue Delta | J25: =J20+J21-J23 ->  | K25: =K20+K21-K23 ->  | L25: =L20+L21-L23 ->  | P25: =_xll.RiskOutput($T25&" / "&P$3)+J25 ->  | Q25: =_xll.RiskOutput($T25&" / "&Q$3)+K25 ->  | R25: =_xll.RiskOutput($T25&" / "&R$3)+L25 ->  | S25: =_xll.RiskOutput($T25&" / "&S$3)+Q25+R25 ->  | T25: NORM Summary Statistics
J27: Slice0 | K27: Slice1 | L27: Slice2
J28: 0.265953 | K28: 0.197406 | L28: 0.197406

Sheet RiskSerializationData (hidden)
A1: 3 | B1: 0
A2: 0
A3: ='[2]Risk Summary'!$H$35 -> -9878.787944 | B3: TRUE | C3: 0 | D3: 1 | E3: GF1_rK0qDwEAEADLAAwjACYATQBfAG0AbgB8AIoApgDHAMEAKgD//wACAAAAAQQAAAAAGSMsIyMwLjAwMCxfKTsoIywjIzAuMDAwLCkAAAABDERlbHRhIC8gR2FtZQEAAQEKAAIAAQROb25lAwEBAP8BAQEBAQABAQEABAAAAAEBAQEBAAEBAQAEAAAAAY4AAhQADERlbHRhIC8gR2FtZQAALwEAAgACAK4AuAABAQIBmpmZmZmZqT8AAAAAAAAA29pAAQUAAAEBAAEBAQA= | F3: 1 | G3: 0 | H3: 0 | J3: >75% | K3: <25% | L3: >90% | AG3: ='[2]Risk Summary'!$H$35 -> -9878.787944 | AH3: 1 | AI3: 1 | AJ3: FALSE | AK3: TRUE | AL3: 0 | AM3: FALSE | AN3: =_ -> 
A4: ='[2]Risk Summary'!$K$35 -> 10410.82077 | B4: TRUE | C4: 0 | D4: 1 | E4: GF1_rK0qDwEAEADSAAwjACYATQBfAHMAdACCAJAArADOAMgAKgD//wAAAAAAAQQAAAAAGSMsIyMwLjAwMCxfKTsoIywjIzAuMDAwLCkAAAABDERlbHRhIC8gR2FtZQEAAQEQAAIAAQpTdGF0aXN0aWNzAwEBAP8BAQEBAQABAQEABAAAAAEBAQEBAAEBAQAEAAAAAZQAAhQADERlbHRhIC8gR2FtZQAALwEAAgACALQAvgABAQIBmpmZmZmZqT8AAGZmZmZmZu4/AAAFAAEBAQABAQEA | F4: 1 | G4: 0 | H4: 0 | J4: >75% | K4: <25% | L4: >90% | AG4: ='[2]Risk Summary'!$K$35 -> 10410.82077 | AH4: 2 | AI4: 1 | AJ4: FALSE | AK4: TRUE | AL4: 0 | AM4: FALSE | AN4: =_ -> 
A5: ='[2]Risk Summary'!$H$30 -> -4509.99996 | B5: FALSE | C5: 1 | D5: 1 | E5: GF1_rK0qDwEAEABGAQwjACYAYACkALgAuQDHANUAIAFCATwBKgD//wABAAAAAQQAAAAALF8oJCogIywjIzBfKTtfKCQqICgjLCMjMCk7XygkKiAiLSI/P18pO18oQF8pAAAAARhJbnRlcmVzdCBFYXJuaW5ncyAvIEdhbWUBJkNvbXBhcmlzb24gd2l0aCBVbmlmb3JtKDAsLTQ1MDkuOTk5OTYpAQEQAAIAAQpTdGF0aXN0aWNzAwEBAP8BAQEBAQABAQEABAAAAAEBAQEBAAEBAQAEAAAAAtwAAgABACAAGEludGVyZXN0IEVhcm5pbmdzIC8gR2FtZQAALwEAAgACAB4AFlVuaWZvcm0oMCwtNDUwOS45OTk5NikBASUBAAIAKAEyAQEBAgGamZmZmZmpPwAAZmZmZmZm7j8AAAUAAQEBAAEBAQA= | F5: 2 | G5: 0 | H5: 0 | AG5: ='[2]Risk Summary'!$H$30 -> -4509.99996 | AH5: 16 | AI5: 1 | AJ5: FALSE | AK5: FALSE | AL5: 1 | AM5: FALSE | AN5: =_ ->  | AO5: ='[2]Risk Summary'!$H$30 -> -4509.99996 | AP5: 16 | AQ5: 1 | AR5: TRUE | AS5: FALSE | AT5: 1 | AU5: TRUE | AV5: =_RiskUniform(0,F30) -> 
A6: 0
A7: FALSE | B7: 15680 | C7: 7345 | D7: 13120 | E7: 0
A8: FALSE | B8: 15680 | C8: 7345 | D8: 13120 | E8: 0
A9: FALSE | B9: 15680 | C9: 7345 | D9: 13120 | E9: 0
A10: FALSE | B10: 15680 | C10: 7345 | D10: 13120 | E10: 0
A11: FALSE | B11: 15680 | C11: 7345 | D11: 13120 | E11: 0
A12: 0
A13: 0 | B13: FALSE | C13: FALSE | D13: 10 | E13: 0.95 | F13: 1

Sheet NR_to_Cash
A3: Table 2
A4: TOOLKIT NET REVENUE TO CASH ADJUSTMENTS
A5: (in $Thousands)
C6: NR to Cash
C9: FY 2023 | D9: FY 2024 | E9: FY 2025 | G9: Color Key:
G10: SME Input
A11: 1 | B11: Input NRTC Adjustment | C11: -603856.9215 | D11: -155157.7869 | E11: -155327.142 | G11: Worksheet Formula
G12: @Risk Output
A13: 5 | B13: NORM Slice True Up Lagging out of this year | C13: =_xll.RiskOutput(,B13,1)+(-'Risk Summary'!J21+'Risk Summary'!J23) ->  | D13: =_xll.RiskOutput(,B13,2)+(-'Risk Summary'!K21+'Risk Summary'!K23) ->  | E13: =_xll.RiskOutput(,B13,3)+(-'Risk Summary'!L21+'Risk Summary'!L23) ->  | G13: Linked to Summary
A14: 6 | B14: NORM Slice True Up Lagging in from previous year | C14: 0 | D14: =-C13 ->  | E14: =-D13 ->  | G14: @Risk Formula
A16: 7 | B16: Net Revenue to Cash Adjustment | C16: =IFERROR(SUM(C11:C14),C11) -> -603856.9215 | D16: =IFERROR(SUM(D11:D14),D11) -> -155157.7869 | E16: =IFERROR(SUM(E11:E14),E11) -> -155327.142
B18: Interest Credit
B19: Repayment of Treasury Principal
B20: Repayment of Treasury Interest
B21: Total Treasury Payment
B23: (in $Thousands) | C23: =C9 -> FY 2023 | D23: =D9 -> FY 2024 | E23: =E9 -> FY 2025
B24: PS NR | C24: ='Src Proforma'!F248 -> 429174.4647 | D24: ='Src Proforma'!G248 -> 325396.6025 | E24: ='Src Proforma'!H248 -> 241020.4164
B27: BOY Reserves for risk | C27: 1244323 | D27: =C28 -> 1069640.543 | E27: =D28 -> 1239879.359
B28: EOY Reserves for risk | C28: =C27+C24+C16 -> 1069640.543 | D28: =D27+D24+D16 -> 1239879.359 | E28: =E27+E24+E16 -> 1325572.633

Sheet CGS Refueling
L2: Color Key:
B3: FY23 | C3: FY24 | D3: FY25 | L3: SME Input
A4: Slice Percent | B4: 0.1974071 | C4: 0.1974071 | D4: 0.1974071 | E4: not trued up | G4: Output for Charts | L4: Worksheet Formula
A5: CGS Revenue Delta | B5: =_xll.RiskOutput("CGS Outage Revenue Impact / FY13")+OFFSET(B8,_xll.RiskCurrentIter(),0)*(1-B4) ->  | C5: =_xll.RiskOutput("CGS Outage Revenue Impact / FY14")+OFFSET(C8,_xll.RiskCurrentIter(),0)*(1-C4) ->  | D5: =_xll.RiskOutput("CGS Outage Revenue Impact / FY15")+OFFSET(D8,_xll.RiskCurrentIter(),0)*(1-D4) ->  | E5: ($000) | G5: =_xll.RiskOutput("CGS Outage Revenue Impact / FY14 and FY15")+(C5+D5) ->  | L5: @Risk Output
L6: Linked to Summary
B7: =B3 -> FY23 | C7: =C3 -> FY24 | D7: =D3 -> FY25 | L7: @Risk Formula
A8: MEAN | B8: =AVERAGE(B9:B3208) -> 0 | C8: =AVERAGE(C9:C3208) -> 0 | D8: =AVERAGE(D9:D3208) -> 0
A9: 1 | B9: 0 | C9: 0 | D9: 0
A10: 2 | B10: 0 | C10: 0 | D10: 0
A11: 3 | B11: 0 | C11: 0 | D11: 0
A12: 4 | B12: 0 | C12: 0 | D12: 0
A13: 5 | B13: 0 | C13: 0 | D13: 0
A14: 6 | B14: 0 | C14: 0 | D14: 0
A15: 7 | B15: 0 | C15: 0 | D15: 0
A16: 8 | B16: 0 | C16: 0 | D16: 0
A17: 9 | B17: 0 | C17: 0 | D17: 0
A18: 10 | B18: 0 | C18: 0 | D18: 0
A19: 11 | B19: 0 | C19: 0 | D19: 0
A20: 12 | B20: 0 | C20: 0 | D20: 0
A21: 13 | B21: 0 | C21: 0 | D21: 0
A22: 14 | B22: 0 | C22: 0 | D22: 0
A23: 15 | B23: 0 | C23: 0 | D23: 0
A24: 16 | B24: 0 | C24: 0 | D24: 0
A25: 17 | B25: 0 | C25: 0 | D25: 0
A26: 18 | B26: 0 | C26: 0 | D26: 0
A27: 19 | B27: 0 | C27: 0 | D27: 0
A28: 20 | B28: 0 | C28: 0 | D28: 0
A29: 21 | B29: 0 | C29: 0 | D29: 0
A30: 22 | B30: 0 | C30: 0 | D30: 0
A31: 23 | B31: 0 | C31: 0 | D31: 0
A32: 24 | B32: 0 | C32: 0 | D32: 0
A33: 25 | B33: 0 | C33: 0 | D33: 0
A34: 26 | B34: 0 | C34: 0 | D34: 0
A35: 27 | B35: 0 | C35: 0 | D35: 0
A36: 28 | B36: 0 | C36: 0 | D36: 0
A37: 29 | B37: 0 | C37: 0 | D37: 0
A38: 30 | B38: 0 | C38: 0 | D38: 0
A39: 31 | B39: 0 | C39: 0 | D39: 0
A40: 32 | B40: 0 | C40: 0 | D40: 0
A41: 33 | B41: 0 | C41: 0 | D41: 0
A42: 34 | B42: 0 | C42: 0 | D42: 0
A43: 35 | B43: 0 | C43: 0 | D43: 0
A44: 36 | B44: 0 | C44: 0 | D44: 0
A45: 37 | B45: 0 | C45: 0 | D45: 0
A46: 38 | B46: 0 | C46: 0 | D46: 0
A47: 39 | B47: 0 | C47: 0 | D47: 0
A48: 40 | B48: 0 | C48: 0 | D48: 0
A49: 41 | B49: 0 | C49: 0 | D49: 0
A50: 42 | B50: 0 | C50: 0 | D50: 0
A51: 43 | B51: 0 | C51: 0 | D51: 0
A52: 44 | B52: 0 | C52: 0 | D52: 0
A53: 45 | B53: 0 | C53: 0 | D53: 0
A54: 46 | B54: 0 | C54: 0 | D54: 0
A55: 47 | B55: 0 | C55: 0 | D55: 0
A56: 48 | B56: 0 | C56: 0 | D56: 0
A57: 49 | B57: 0 | C57: 0 | D57: 0
A58: 50 | B58: 0 | C58: 0 | D58: 0
A59: 51 | B59: 0 | C59: 0 | D59: 0
A60: 52 | B60: 0 | C60: 0 | D60: 0
A61: 53 | B61: 0 | C61: 0 | D61: 0
A62: 54 | B62: 0 | C62: 0 | D62: 0
A63: 55 | B63: 0 | C63: 0 | D63: 0
A64: 56 | B64: 0 | C64: 0 | D64: 0
A65: 57 | B65: 0 | C65: 0 | D65: 0
A66: 58 | B66: 0 | C66: 0 | D66: 0
A67: 59 | B67: 0 | C67: 0 | D67: 0
A68: 60 | B68: 0 | C68: 0 | D68: 0
A69: 61 | B69: 0 | C69: 0 | D69: 0
A70: 62 | B70: 0 | C70: 0 | D70: 0
A71: 63 | B71: 0 | C71: 0 | D71: 0
A72: 64 | B72: 0 | C72: 0 | D72: 0
A73: 65 | B73: 0 | C73: 0 | D73: 0
A74: 66 | B74: 0 | C74: 0 | D74: 0
A75: 67 | B75: 0 | C75: 0 | D75: 0
A76: 68 | B76: 0 | C76: 0 | D76: 0
A77: 69 | B77: 0 | C77: 0 | D77: 0
A78: 70 | B78: 0 | C78: 0 | D78: 0
A79: 71 | B79: 0 | C79: 0 | D79: 0
A80: 72 | B80: 0 | C80: 0 | D80: 0
A81: 73 | B81: 0 | C81: 0 | D81: 0
A82: 74 | B82: 0 | C82: 0 | D82: 0
A83: 75 | B83: 0 | C83: 0 | D83: 0
A84: 76 | B84: 0 | C84: 0 | D84: 0
A85: 77 | B85: 0 | C85: 0 | D85: 0
A86: 78 | B86: 0 | C86: 0 | D86: 0
A87: 79 | B87: 0 | C87: 0 | D87: 0
A88: 80 | B88: 0 | C88: 0 | D88: 0
A89: 81 | B89: 0 | C89: 0 | D89: 0
A90: 82 | B90: 0 | C90: 0 | D90: 0
A91: 83 | B91: 0 | C91: 0 | D91: 0
A92: 84 | B92: 0 | C92: 0 | D92: 0
A93: 85 | B93: 0 | C93: 0 | D93: 0
A94: 86 | B94: 0 | C94: 0 | D94: 0
A95: 87 | B95: 0 | C95: 0 | D95: 0
A96: 88 | B96: 0 | C96: 0 | D96: 0
A97: 89 | B97: 0 | C97: 0 | D97: 0
A98: 90 | B98: 0 | C98: 0 | D98: 0
A99: 91 | B99: 0 | C99: 0 | D99: 0
A100: 92 | B100: 0 | C100: 0 | D100: 0
A101: 93 | B101: 0 | C101: 0 | D101: 0
A102: 94 | B102: 0 | C102: 0 | D102: 0
A103: 95 | B103: 0 | C103: 0 | D103: 0
A104: 96 | B104: 0 | C104: 0 | D104: 0
A105: 97 | B105: 0 | C105: 0 | D105: 0
A106: 98 | B106: 0 | C106: 0 | D106: 0
A107: 99 | B107: 0 | C107: 0 | D107: 0
A108: 100 | B108: 0 | C108: 0 | D108: 0
A109: 101 | B109: 0 | C109: 0 | D109: 0
A110: 102 | B110: 0 | C110: 0 | D110: 0
A111: 103 | B111: 0 | C111: 0 | D111: 0
A112: 104 | B112: 0 | C112: 0 | D112: 0
A113: 105 | B113: 0 | C113: 0 | D113: 0
A114: 106 | B114: 0 | C114: 0 | D114: 0
A115: 107 | B115: 0 | C115: 0 | D115: 0
A116: 108 | B116: 0 | C116: 0 | D116: 0
A117: 109 | B117: 0 | C117: 0 | D117: 0
A118: 110 | B118: 0 | C118: 0 | D118: 0
A119: 111 | B119: 0 | C119: 0 | D119: 0
A120: 112 | B120: 0 | C120: 0 | D120: 0
A121: 113 | B121: 0 | C121: 0 | D121: 0
A122: 114 | B122: 0 | C122: 0 | D122: 0
A123: 115 | B123: 0 | C123: 0 | D123: 0
A124: 116 | B124: 0 | C124: 0 | D124: 0
A125: 117 | B125: 0 | C125: 0 | D125: 0
A126: 118 | B126: 0 | C126: 0 | D126: 0
A127: 119 | B127: 0 | C127: 0 | D127: 0
A128: 120 | B128: 0 | C128: 0 | D128: 0
A129: 121 | B129: 0 | C129: 0 | D129: 0
A130: 122 | B130: 0 | C130: 0 | D130: 0
A131: 123 | B131: 0 | C131: 0 | D131: 0
A132: 124 | B132: 0 | C132: 0 | D132: 0
A133: 125 | B133: 0 | C133: 0 | D133: 0
A134: 126 | B134: 0 | C134: 0 | D134: 0
A135: 127 | B135: 0 | C135: 0 | D135: 0
A136: 128 | B136: 0 | C136: 0 | D136: 0
A137: 129 | B137: 0 | C137: 0 | D137: 0
A138: 130 | B138: 0 | C138: 0 | D138: 0
A139: 131 | B139: 0 | C139: 0 | D139: 0
A140: 132 | B140: 0 | C140: 0 | D140: 0
A141: 133 | B141: 0 | C141: 0 | D141: 0
A142: 134 | B142: 0 | C142: 0 | D142: 0
A143: 135 | B143: 0 | C143: 0 | D143: 0
A144: 136 | B144: 0 | C144: 0 | D144: 0
A145: 137 | B145: 0 | C145: 0 | D145: 0
A146: 138 | B146: 0 | C146: 0 | D146: 0
A147: 139 | B147: 0 | C147: 0 | D147: 0
A148: 140 | B148: 0 | C148: 0 | D148: 0
A149: 141 | B149: 0 | C149: 0 | D149: 0
A150: 142 | B150: 0 | C150: 0 | D150: 0
A151: 143 | B151: 0 | C151: 0 | D151: 0
A152: 144 | B152: 0 | C152: 0 | D152: 0
A153: 145 | B153: 0 | C153: 0 | D153: 0
A154: 146 | B154: 0 | C154: 0 | D154: 0
A155: 147 | B155: 0 | C155: 0 | D155: 0
A156: 148 | B156: 0 | C156: 0 | D156: 0
A157: 149 | B157: 0 | C157: 0 | D157: 0
A158: 150 | B158: 0 | C158: 0 | D158: 0
A159: 151 | B159: 0 | C159: 0 | D159: 0
A160: 152 | B160: 0 | C160: 0 | D160: 0
A161: 153 | B161: 0 | C161: 0 | D161: 0
A162: 154 | B162: 0 | C162: 0 | D162: 0
A163: 155 | B163: 0 | C163: 0 | D163: 0
A164: 156 | B164: 0 | C164: 0 | D164: 0
A165: 157 | B165: 0 | C165: 0 | D165: 0
A166: 158 | B166: 0 | C166: 0 | D166: 0
A167: 159 | B167: 0 | C167: 0 | D167: 0
A168: 160 | B168: 0 | C168: 0 | D168: 0
A169: 161 | B169: 0 | C169: 0 | D169: 0
A170: 162 | B170: 0 | C170: 0 | D170: 0
A171: 163 | B171: 0 | C171: 0 | D171: 0
A172: 164 | B172: 0 | C172: 0 | D172: 0
A173: 165 | B173: 0 | C173: 0 | D173: 0
A174: 166 | B174: 0 | C174: 0 | D174: 0
A175: 167 | B175: 0 | C175: 0 | D175: 0
A176: 168 | B176: 0 | C176: 0 | D176: 0
A177: 169 | B177: 0 | C177: 0 | D177: 0
A178: 170 | B178: 0 | C178: 0 | D178: 0
A179: 171 | B179: 0 | C179: 0 | D179: 0
A180: 172 | B180: 0 | C180: 0 | D180: 0
A181: 173 | B181: 0 | C181: 0 | D181: 0
A182: 174 | B182: 0 | C182: 0 | D182: 0
A183: 175 | B183: 0 | C183: 0 | D183: 0
A184: 176 | B184: 0 | C184: 0 | D184: 0
A185: 177 | B185: 0 | C185: 0 | D185: 0
A186: 178 | B186: 0 | C186: 0 | D186: 0
A187: 179 | B187: 0 | C187: 0 | D187: 0
A188: 180 | B188: 0 | C188: 0 | D188: 0
A189: 181 | B189: 0 | C189: 0 | D189: 0
A190: 182 | B190: 0 | C190: 0 | D190: 0
A191: 183 | B191: 0 | C191: 0 | D191: 0
A192: 184 | B192: 0 | C192: 0 | D192: 0
A193: 185 | B193: 0 | C193: 0 | D193: 0
A194: 186 | B194: 0 | C194: 0 | D194: 0
A195: 187 | B195: 0 | C195: 0 | D195: 0
A196: 188 | B196: 0 | C196: 0 | D196: 0
A197: 189 | B197: 0 | C197: 0 | D197: 0
A198: 190 | B198: 0 | C198: 0 | D198: 0
A199: 191 | B199: 0 | C199: 0 | D199: 0
A200: 192 | B200: 0 | C200: 0 | D200: 0
A201: 193 | B201: 0 | C201: 0 | D201: 0
... 3007 more rows

Sheet RiskRGCGSR26C11 (hidden)
A33: Del X | B33: Del Y | E33: X1 | F33: Y1
A34: 291056.5338 | B34: 0.09 | E34: 288867.2056 | F34: 0.03
A35: 308900.8965 | B35: 0.09 | E35: 290113.3756 | F35: 0.03
A36: 288028.2669 | B36: 0.09 | E36: 291359.5457 | F36: 0.04
A37: 299978.7151 | B37: 0.09 | E37: 292605.7157 | F37: 0.07
A38: 311950.4482 | B38: 0.09 | E38: 293851.8857 | F38: 0.05
E39: 295098.0558 | F39: 0.08
E40: 296344.2258 | F40: 0.08
E41: 297590.3959 | F41: 0.08
E42: 298836.5659 | F42: 0.08
E43: 300082.7359 | F43: 0.07
E44: 301328.906 | F44: 0.08
E45: 302575.076 | F45: 0.07
E46: 303821.2461 | F46: 0.06
E47: 305067.4161 | F47: 0.04
E48: 306313.5861 | F48: 0.05
E49: 307559.7562 | F49: 0.03
E50: 308805.9262 | F50: 0.02
E51: 310052.0963 | F51: 0.02
E52: 311298.2663 | F52: 0.01
E53: 312544.4363 | F53: 0.01
E54: 313790.6064 | F54: 0
B2501: XFill1 | C2501: ="CGS Total O&M / FY14" -> CGS Total O&M / FY14 | D2501: XLine1 | E2501: ="CGS Total O&M / FY14" -> CGS Total O&M / FY14
B2502: 288867.2056 | C2502: =0 -> 0 | D2502: 288867.2056 | E2502: 0
B2503: 288867.2056 | C2503: =$F$34 -> 0.03 | D2503: 288867.2056 | E2503: 0
B2504: 288966.8992 | C2504: 0.03 | D2504: 288867.2056 | E2504: =$F$34 -> 0.03
B2505: 289066.5928 | C2505: 0.03 | D2505: 290113.3756 | E2505: =$F$34 -> 0.03
B2506: 289166.2864 | C2506: 0.03 | D2506: 290113.3756 | E2506: 0
B2507: 289265.98 | C2507: 0.03 | D2507: 290113.3756 | E2507: =$F$35 -> 0.03
B2508: 289365.6736 | C2508: 0.03 | D2508: 291359.5457 | E2508: =$F$35 -> 0.03
B2509: 289465.3672 | C2509: 0.03 | D2509: 291359.5457 | E2509: 0
B2510: 289565.0608 | C2510: 0.03 | D2510: 291359.5457 | E2510: =$F$36 -> 0.04
B2511: 289664.7544 | C2511: 0.03 | D2511: 292605.7157 | E2511: =$F$36 -> 0.04
B2512: 289764.448 | C2512: 0.03 | D2512: 292605.7157 | E2512: 0
B2513: 289864.1416 | C2513: 0.03 | D2513: 292605.7157 | E2513: =$F$37 -> 0.07
B2514: 289963.8352 | C2514: 0.03 | D2514: 293851.8857 | E2514: =$F$37 -> 0.07
B2515: 290063.5288 | C2515: 0.03 | D2515: 293851.8857 | E2515: 0
B2516: 290113.3756 | C2516: 0.03 | D2516: 293851.8857 | E2516: =$F$38 -> 0.05
B2517: 290113.3756 | C2517: 0 | D2517: 295098.0558 | E2517: =$F$38 -> 0.05
B2518: 290113.3756 | C2518: =0 -> 0 | D2518: 295098.0558 | E2518: 0
B2519: 290113.3756 | C2519: =$F$35 -> 0.03 | D2519: 295098.0558 | E2519: =$F$39 -> 0.08
B2520: 290213.0692 | C2520: 0.03 | D2520: 296344.2258 | E2520: =$F$39 -> 0.08
B2521: 290312.7628 | C2521: 0.03 | D2521: 296344.2258 | E2521: 0
B2522: 290412.4564 | C2522: 0.03 | D2522: 296344.2258 | E2522: =$F$40 -> 0.08
B2523: 290512.15 | C2523: 0.03 | D2523: 297590.3959 | E2523: =$F$40 -> 0.08
B2524: 290611.8436 | C2524: 0.03 | D2524: 297590.3959 | E2524: 0
B2525: 290711.5372 | C2525: 0.03 | D2525: 297590.3959 | E2525: =$F$41 -> 0.08
B2526: 290811.2308 | C2526: 0.03 | D2526: 298836.5659 | E2526: =$F$41 -> 0.08
B2527: 290910.9244 | C2527: 0.03 | D2527: 298836.5659 | E2527: 0
B2528: 291010.618 | C2528: 0.03 | D2528: 298836.5659 | E2528: =$F$42 -> 0.08
B2529: 291110.3117 | C2529: 0.03 | D2529: 300082.7359 | E2529: =$F$42 -> 0.08
B2530: 291210.0053 | C2530: 0.03 | D2530: 300082.7359 | E2530: 0
B2531: 291309.6989 | C2531: 0.03 | D2531: 300082.7359 | E2531: =$F$43 -> 0.07
B2532: 291359.5457 | C2532: 0.03 | D2532: 301328.906 | E2532: =$F$43 -> 0.07
B2533: 291359.5457 | C2533: 0 | D2533: 301328.906 | E2533: 0
B2534: 291359.5457 | C2534: =0 -> 0 | D2534: 301328.906 | E2534: =$F$44 -> 0.08
B2535: 291359.5457 | C2535: =$F$36 -> 0.04 | D2535: 302575.076 | E2535: =$F$44 -> 0.08
B2536: 291459.2393 | C2536: 0.04 | D2536: 302575.076 | E2536: 0
B2537: 291558.9329 | C2537: 0.04 | D2537: 302575.076 | E2537: =$F$45 -> 0.07
B2538: 291658.6265 | C2538: 0.04 | D2538: 303821.2461 | E2538: =$F$45 -> 0.07
B2539: 291758.3201 | C2539: 0.04 | D2539: 303821.2461 | E2539: 0
B2540: 291858.0137 | C2540: 0.04 | D2540: 303821.2461 | E2540: =$F$46 -> 0.06
B2541: 291957.7073 | C2541: 0.04 | D2541: 305067.4161 | E2541: =$F$46 -> 0.06
B2542: 292057.4009 | C2542: 0.04 | D2542: 305067.4161 | E2542: 0
B2543: 292157.0945 | C2543: 0.04 | D2543: 305067.4161 | E2543: =$F$47 -> 0.04
B2544: 292256.7881 | C2544: 0.04 | D2544: 306313.5861 | E2544: =$F$47 -> 0.04
B2545: 292356.4817 | C2545: 0.04 | D2545: 306313.5861 | E2545: 0
B2546: 292456.1753 | C2546: 0.04 | D2546: 306313.5861 | E2546: =$F$48 -> 0.05
B2547: 292555.8689 | C2547: 0.04 | D2547: 307559.7562 | E2547: =$F$48 -> 0.05
B2548: 292605.7157 | C2548: 0.04 | D2548: 307559.7562 | E2548: 0
B2549: 292605.7157 | C2549: 0 | D2549: 307559.7562 | E2549: =$F$49 -> 0.03
B2550: 292605.7157 | C2550: =0 -> 0 | D2550: 308805.9262 | E2550: =$F$49 -> 0.03
B2551: 292605.7157 | C2551: =$F$37 -> 0.07 | D2551: 308805.9262 | E2551: 0
B2552: 292705.4093 | C2552: 0.07 | D2552: 308805.9262 | E2552: =$F$50 -> 0.02
B2553: 292805.1029 | C2553: 0.07 | D2553: 310052.0963 | E2553: =$F$50 -> 0.02
B2554: 292904.7965 | C2554: 0.07 | D2554: 310052.0963 | E2554: 0
B2555: 293004.4901 | C2555: 0.07 | D2555: 310052.0963 | E2555: =$F$51 -> 0.02
B2556: 293104.1837 | C2556: 0.07 | D2556: 311298.2663 | E2556: =$F$51 -> 0.02
B2557: 293203.8773 | C2557: 0.07 | D2557: 311298.2663 | E2557: 0
B2558: 293303.5709 | C2558: 0.07 | D2558: 311298.2663 | E2558: =$F$52 -> 0.01
B2559: 293403.2645 | C2559: 0.07 | D2559: 312544.4363 | E2559: =$F$52 -> 0.01
B2560: 293502.9581 | C2560: 0.07 | D2560: 312544.4363 | E2560: 0
B2561: 293602.6517 | C2561: 0.07 | D2561: 312544.4363 | E2561: =$F$53 -> 0.01
B2562: 293702.3453 | C2562: 0.07 | D2562: 313790.6064 | E2562: =$F$53 -> 0.01
B2563: 293802.0389 | C2563: 0.07 | D2563: 313790.6064 | E2563: 0
B2564: 293851.8857 | C2564: 0.07 | D2564: 313790.6064 | E2564: =$F$54 -> 0
B2565: 293851.8857 | C2565: 0 | E2565: =$F$54 -> 0
B2566: 293851.8857 | C2566: =0 -> 0 | E2566: 0
B2567: 293851.8857 | C2567: =$F$38 -> 0.05
B2568: 293951.5793 | C2568: 0.05
B2569: 294051.2729 | C2569: 0.05
B2570: 294150.9665 | C2570: 0.05
B2571: 294250.6602 | C2571: 0.05
B2572: 294350.3538 | C2572: 0.05
B2573: 294450.0474 | C2573: 0.05
B2574: 294549.741 | C2574: 0.05
B2575: 294649.4346 | C2575: 0.05
B2576: 294749.1282 | C2576: 0.05
B2577: 294848.8218 | C2577: 0.05
B2578: 294948.5154 | C2578: 0.05
B2579: 295048.209 | C2579: 0.05
B2580: 295098.0558 | C2580: 0.05
B2581: 295098.0558 | C2581: 0
B2582: 295098.0558 | C2582: =0 -> 0
B2583: 295098.0558 | C2583: =$F$39 -> 0.08
B2584: 295197.7494 | C2584: 0.08
B2585: 295297.443 | C2585: 0.08
B2586: 295397.1366 | C2586: 0.08
B2587: 295496.8302 | C2587: 0.08
B2588: 295596.5238 | C2588: 0.08
B2589: 295696.2174 | C2589: 0.08
B2590: 295795.911 | C2590: 0.08
B2591: 295895.6046 | C2591: 0.08
B2592: 295995.2982 | C2592: 0.08
B2593: 296094.9918 | C2593: 0.08
B2594: 296194.6854 | C2594: 0.08
B2595: 296294.379 | C2595: 0.08
B2596: 296344.2258 | C2596: 0.08
B2597: 296344.2258 | C2597: 0
B2598: 296344.2258 | C2598: =0 -> 0
B2599: 296344.2258 | C2599: =$F$40 -> 0.08
B2600: 296443.9194 | C2600: 0.08
B2601: 296543.613 | C2601: 0.08
B2602: 296643.3066 | C2602: 0.08
B2603: 296743.0002 | C2603: 0.08
B2604: 296842.6938 | C2604: 0.08
B2605: 296942.3874 | C2605: 0.08
B2606: 297042.081 | C2606: 0.08
B2607: 297141.7746 | C2607: 0.08
B2608: 297241.4682 | C2608: 0.08
B2609: 297341.1619 | C2609: 0.08
B2610: 297440.8555 | C2610: 0.08
B2611: 297540.5491 | C2611: 0.08
B2612: 297590.3959 | C2612: 0.08
B2613: 297590.3959 | C2613: 0
B2614: 297590.3959 | C2614: =0 -> 0
B2615: 297590.3959 | C2615: =$F$41 -> 0.08
B2616: 297690.0895 | C2616: 0.08
B2617: 297789.7831 | C2617: 0.08
B2618: 297889.4767 | C2618: 0.08
B2619: 297989.1703 | C2619: 0.08
B2620: 298088.8639 | C2620: 0.08
B2621: 298188.5575 | C2621: 0.08
B2622: 298288.2511 | C2622: 0.08
B2623: 298387.9447 | C2623: 0.08
B2624: 298487.6383 | C2624: 0.08
B2625: 298587.3319 | C2625: 0.08
B2626: 298687.0255 | C2626: 0.08
B2627: 298786.7191 | C2627: 0.08
B2628: 298836.5659 | C2628: 0.08
B2629: 298836.5659 | C2629: 0
B2630: 298836.5659 | C2630: =0 -> 0
B2631: 298836.5659 | C2631: =$F$42 -> 0.08
B2632: 298936.2595 | C2632: 0.08
B2633: 299035.9531 | C2633: 0.08
B2634: 299135.6467 | C2634: 0.08
B2635: 299235.3403 | C2635: 0.08
B2636: 299335.0339 | C2636: 0.08
B2637: 299434.7275 | C2637: 0.08
B2638: 299534.4211 | C2638: 0.08
B2639: 299634.1147 | C2639: 0.08
B2640: 299733.8083 | C2640: 0.08
B2641: 299833.5019 | C2641: 0.08
B2642: 299933.1955 | C2642: 0.08
B2643: 300032.8891 | C2643: 0.08
B2644: 300082.7359 | C2644: 0.08
B2645: 300082.7359 | C2645: 0
B2646: 300082.7359 | C2646: =0 -> 0
B2647: 300082.7359 | C2647: =$F$43 -> 0.07
B2648: 300182.4295 | C2648: 0.07
B2649: 300282.1231 | C2649: 0.07
B2650: 300381.8167 | C2650: 0.07
B2651: 300481.5104 | C2651: 0.07
B2652: 300581.204 | C2652: 0.07
B2653: 300680.8976 | C2653: 0.07
B2654: 300780.5912 | C2654: 0.07
B2655: 300880.2848 | C2655: 0.07
B2656: 300979.9784 | C2656: 0.07
B2657: 301079.672 | C2657: 0.07
B2658: 301179.3656 | C2658: 0.07
B2659: 301279.0592 | C2659: 0.07
B2660: 301328.906 | C2660: 0.07
B2661: 301328.906 | C2661: 0
B2662: 301328.906 | C2662: =0 -> 0
B2663: 301328.906 | C2663: =$F$44 -> 0.08
B2664: 301428.5996 | C2664: 0.08
B2665: 301528.2932 | C2665: 0.08
B2666: 301627.9868 | C2666: 0.08
B2667: 301727.6804 | C2667: 0.08
B2668: 301827.374 | C2668: 0.08
B2669: 301927.0676 | C2669: 0.08
B2670: 302026.7612 | C2670: 0.08
B2671: 302126.4548 | C2671: 0.08
B2672: 302226.1484 | C2672: 0.08
B2673: 302325.842 | C2673: 0.08
B2674: 302425.5356 | C2674: 0.08
B2675: 302525.2292 | C2675: 0.08
B2676: 302575.076 | C2676: 0.08
B2677: 302575.076 | C2677: 0
B2678: 302575.076 | C2678: =0 -> 0
... 143 more rows

Sheet CGS
B2: ($000) | D2: Rates Values | J2: @Risk | O2: Color Key:
D3: FY23 | E3: FY24 | F3: FY25 | J3: =D3 -> FY23 | K3: =E3 -> FY24 | L3: =F3 -> FY25 | M3: =K3&" and "&L3 -> FY24 and FY25 | O3: SME Input
A4: CGS | B4: Total O&M | D4: ='Risk Summary'!C8 -> 305499 | E4: ='Risk Summary'!E8 -> 296476.712 | F4: ='Risk Summary'!G8 -> 304747.847 | I4: CGS Total O&M | J4: =J5+J14 ->  | K4: =_xll.RiskOutput("CGS Total O&M / FY14")+(K5+K14) ->  | L4: =_xll.RiskOutput("CGS Total O&M / FY15")+(L5+L14) ->  | M4: =_xll.RiskOutput("CGS Total O&M / FY14 and FY 15")+(K4+L4) ->  | O4: Worksheet Formula
H5: Pert | I5: CGS Base O&M | J5: =_xll.RiskPert(J7,J9,J11) ->  | K5: =_xll.RiskPert(K7,K9,K11) ->  | L5: =_xll.RiskPert(L7,L9,L11) ->  | O5: @Risk Output
I6: Min percent of forecast | J6: =100% -> 1 | K6: 0.96 | L6: 0.96 | O6: Linked to Summary
I7: Min | J7: =(D$4-D$15)*(J6) -> 302601 | K7: =(E$4-E$15)*(K6) -> 281724.2803 | L7: =(F$4-F$15)*(L6) -> 289548.8354 | O7: @Risk Formula
I8: Expected percent of forecast | J8: 1 | K8: 1 | L8: 1
I9: Expected | J9: =(D$4-D$15)*(J8) -> 302601 | K9: =(E$4-E$15)*(K8) -> 293462.792 | L9: =(F$4-F$15)*(L8) -> 301613.3702
I10: Max Percent of forecast | J10: =100% -> 1 | K10: 1.06 | L10: 1.06
I11: Max | J11: =(D$4-D$15)*(J10) -> 302601 | K11: =(E$4-E$15)*(K10) -> 311070.5595 | L11: =(F$4-F$15)*(L10) -> 319710.1724
D14: NEIL Premium | E14: NEIL Premium | F14: NEIL Premium | I14: NEIL Premium | J14: =_xll.RiskPert(J15,J16,J17) ->  | K14: =_xll.RiskPert(K15,K16,K17) ->  | L14: =_xll.RiskPert(L15,L16,L17) -> 
D15: 2898 | E15: =D15*1.04 -> 3013.92 | F15: =E15*1.04 -> 3134.4768 | H15: Pert | I15: Low | J15: =J16*0.975+D19*0.5 -> 1588.05 | K15: =K16*0.95+E19 -> 888.224 | L15: =L16*0.95+F19 -> 1002.75296
D16: EV Credit | E16: EV Credit | F16: EV Credit | I16: Base | J16: =D15+D17 -> 2398 | K16: =E15+E17 -> 2513.92 | L16: =F15+F17 -> 2634.4768
D17: -500 | E17: -500 | F17: -500 | I17: High | J17: =J16*1.025 -> 2457.95 | K17: =K16*1.05 -> 2639.616 | L17: =L16*1.05 -> 2766.20064
D18: Good case Credit | E18: Good case Credit | F18: Good case Credit
D19: -1500 | E19: -1500 | F19: -1500

Sheet Corps & Bureau O&M
C2: FY23 | D2: FY23 | E2: FY24 | F2: FY24 | G2: FY25 | H2: FY25
C3: Input | D3: @risk | E3: Input | F3: @risk | G3: Input | H3: @risk
F4: CORPOM-1 | H4: CORPOM-2 | L4: =D2 -> FY23 | M4: =F2 -> FY24 | N4: =H2 -> FY25
A5: CORPS O&M | C5: ='Risk Summary'!C10 -> 252557 | D5: =D39+(D42+D47)+D53+D58+D64 ->  | E5: ='Risk Summary'!E10 -> 265146.0001 | F5: =F39+(F42+F47)+F53+F58+F64 ->  | G5: ='Risk Summary'!G10 -> 252557 | H5: =H39+(H42+H47)+H53+H58+H64 ->  | J5: COE and Reclamination O&M | L5: =_xll.RiskOutput("COE and Reclamation O&M / "&L4)+(D5+D22) ->  | M5: =_xll.RiskOutput("COE and Reclamation O&M / "&M4)+(F5+F22) ->  | N5: =_xll.RiskOutput("COE and Reclamation O&M / "&N4)+(H5+H22) ->  | O5: =_xll.RiskOutput("COE and Reclamation / FY14 and FY15")+(M5+N5) -> 
A6: Fish Passage | L6: =_xll.RiskMean(L5) -> 
A7: = Base O&M | B7: Deterministic | D7: =D39 -> 252557 | F7: =F39 -> 265146.0001 | H7: =H39 -> 252557
A9: + Added Security costs if event occurs | B9: RiskDiscrete | D9: =D42 ->  | F9: =F42 ->  | H9: =H42 ->  | J9: Color Key:
J10: SME Input
A11: + Added Fish Environmental Compliance costs if event occurs | B11: RiskDiscrete | D11: =D47 ->  | F11: =F47 ->  | H11: =H47 ->  | J11: Worksheet Formula
J12: @Risk Output
A13: - Non-Routine Extraordinary Maintenance Costs Reduction | B13: RiskDiscrete | D13: =D53 ->  | F13: =F53 ->  | H13: =H53 ->  | J13: Linked to Summary
A15: + Catastrophic Event Cost | B15: RiskDiscrete | D15: =D58 ->  | F15: =F58 ->  | H15: =H58 -> 
A17: + Additional System Needs Costs | B17: RiskDiscrete | D17: =D64 ->  | F17: =F64 ->  | H17: =H64 -> 
B19: QC Check of totals | D19: =SUM(D7:D17) ->  | F19: =SUM(F7:F17) ->  | H19: =SUM(H7:H17) -> 
D21: BUROM-1 | F21: BUROM-1 | H21: BUROM-2
A22: BUREAU O&M | C22: ='Risk Summary'!C9 -> 152963 | D22: =D69+(D72+D75)+D81+D92 ->  | E22: ='Risk Summary'!E9 -> 154364 | F22: =F69+(F72+F75)+F81+F92 ->  | G22: ='Risk Summary'!G9 -> 152963 | H22: =H69+(H72+H75)+H81+H92 -> 
A24: = Base O&M | B24: RiskPert | D24: =D69 -> 152963 | F24: =F69 -> 154364 | H24: =H69 -> 152963
A26: + Added Security costs if event occurs | B26: RiskDiscrete | D26: =D72 ->  | F26: =F72 ->  | H26: =H72 -> 
A28: + Added Fish Environmental Compliance costs if event occurs | B28: RiskDiscrete | D28: =D75 ->  | F28: =F75 ->  | H28: =H75 -> 
A30: - Non-Routine Extraordinary Maintenance Costs Reduction | B30: RiskDiscrete | D30: =D81 ->  | F30: =F81 ->  | H30: =H81 -> 
A32: + Catastrophic Event Cost | B32: RiskDiscrete | D32: =D86 ->  | F32: =F86 ->  | H32: =H86 -> 
A34: + Additional System Needs Costs | B34: RiskDiscrete | D34: =D92 ->  | F34: =F92 ->  | H34: =H92 -> 
B36: QC Check of totals | D36: =SUM(D24:D34) ->  | F36: =SUM(F24:F34) ->  | H36: =SUM(H24:H34) -> 
A38: Corps of Engineers
A39: Base O&M | B39: Deterministic | D39: =C5 -> 252557 | F39: =E5 -> 265146.0001 | H39: =G5 -> 252557
A41: Security | D41: CORPO&MSEC-1 | F41: CORPO&MSEC-1 | H41: CORPO&MSEC-2
D42: =_xll.RiskDiscrete(D43:E43,D44:E44) ->  | F42: =_xll.RiskDiscrete(F43:G43,F44:G44) ->  | H42: =_xll.RiskDiscrete(H43:I43,H44:I44) -> 
B43: Cost of an Event | D43: 3000 | E43: 0 | F43: 3000 | G43: 0 | H43: 3000 | I43: 0
B44: Probability of an event | D44: =2%/2 -> 0.01 | E44: =1-D44 -> 0.99 | F44: 0.02 | G44: =1-F44 -> 0.98 | H44: 0.02 | I44: =1-H44 -> 0.98
A46: Fish - Environmental Compliance | D46: CORPO&Mecomp-1 | F46: CORPO&Mecomp-1 | H46: CORPO&Mecomp-2
D47: =_xll.RiskDiscrete(D48:E48,D49:E49) ->  | F47: =_xll.RiskDiscrete(F48:G48,F49:G49) ->  | H47: =_xll.RiskDiscrete(H48:I48,H49:I49) -> 
B48: Cost of an Event | D48: 2000 | E48: 0 | F48: 2000 | G48: 0 | H48: 2000 | I48: 0
B49: Probability of an event | D49: =2%/2 -> 0.01 | E49: =1-D49 -> 0.99 | F49: 0.02 | G49: =1-F49 -> 0.98 | H49: 0.02 | I49: =1-H49 -> 0.98
A51: Non-Routine Extraordinary Maintenance
D52: CORPO&MNREMsav-1 | F52: CORPO&MNREMsav-1 | H52: CORPO&MNREMsav-2
B53: EV Additional Annual Cost | D53: =_xll.RiskDiscrete(D54:E54,D55:E55) ->  | F53: =_xll.RiskDiscrete(F54:G54,F55:G55) ->  | H53: =_xll.RiskDiscrete(H54:I54,H55:I55) -> 
B54: Annual Cost (Additional) | D54: 5000 | E54: 0 | F54: 5000 | G54: 0 | H54: 5000 | I54: 0
B55: Probability that Additional Costs will be provided | D55: =2.5%/2 -> 0.0125 | E55: =1-D55 -> 0.9875 | F55: 0.025 | G55: =1-F55 -> 0.975 | H55: 0.025 | I55: =1-H55 -> 0.975
A57: Catastrophic Event | D57: CORPO&MNREM-1 | F57: CORPO&MNREM-1 | H57: CORPO&MNREM-2
B58: EV Event Cost | D58: =_xll.RiskDiscrete(D59:E59,D60:E60) ->  | F58: =_xll.RiskDiscrete(F59:G59,F60:G60) ->  | H58: =_xll.RiskDiscrete(H59:I59,H60:I60) -> 
B59: Event Cost | D59: 30000 | E59: 0 | F59: 30000 | G59: 0 | H59: 30000 | I59: 0
B60: Event Probability | D60: =1%/2 -> 0.005 | E60: =1-D60 -> 0.995 | F60: 0.01 | G60: =1-F60 -> 0.99 | H60: 0.01 | I60: =1-H60 -> 0.99
A62: New System Requirements/Needs (e.g. for compliance/regulations, etc.)
D63: CORPO&MNREM-1 | F63: CORPO&MNREM-1 | H63: CORPO&MNREM-1
B64: EV Additional Annual Cost | D64: =_xll.RiskDiscrete(D65:E65,D66:E66) ->  | F64: =_xll.RiskDiscrete(F65:G65,F66:G66) ->  | H64: =_xll.RiskDiscrete(H65:I65,H66:I66) -> 
B65: Annual Cost (Additional) | D65: 5000 | E65: 0 | F65: 5000 | G65: 0 | H65: 5000 | I65: 0
B66: Probability of Additional Costs | D66: =10%/2 -> 0.05 | E66: =1-D66 -> 0.95 | F66: 0.1 | G66: =1-F66 -> 0.9 | H66: 0.1 | I66: =1-H66 -> 0.9
A68: Bureau
A69: Base O&M | B69: RiskPert | D69: =C22 -> 152963 | F69: =E22 -> 154364 | H69: =G22 -> 152963
A71: Security | D71: BURO&MSEC-1 | F71: BURO&MSEC-1 | H71: BURO&MSEC-2
D72: =D42 ->  | F72: =F42 ->  | H72: =H42 -> 
A74: Fish - Environmental Compliance | D74: BURO&Mecomp-1 | F74: BURO&Mecomp-1 | H74: BURO&Mecomp-2
D75: =_xll.RiskDiscrete(D76:E76,D77:E77) ->  | F75: =_xll.RiskDiscrete(F76:G76,F77:G77) ->  | H75: =_xll.RiskDiscrete(H76:I76,H77:I77) -> 
B76: Cost of an Event | D76: 2000 | E76: 0 | F76: 2000 | G76: 0 | H76: 2000 | I76: 0
B77: Probability of an event | D77: 0.01 | E77: =1-D77 -> 0.99 | F77: 0.02 | G77: =1-F77 -> 0.98 | H77: 0.02 | I77: =1-H77 -> 0.98
A79: Non-Routine Extraordinary Maintenance
D80: BURO&MNREMsav-1 | F80: BURO&MNREMsav-1 | H80: BURO&MNREMsav-2
B81: EV Additional Annual Cost | D81: =_xll.RiskDiscrete(D82:E82,D83:E83) ->  | F81: =_xll.RiskDiscrete(F82:G82,F83:G83) ->  | H81: =_xll.RiskDiscrete(H82:I82,H83:I83) -> 
B82: Annual Cost (Additional) | D82: 5000 | E82: 0 | F82: 5000 | G82: 0 | H82: 5000 | I82: 0
B83: Probability that Additional Costs will be provided | D83: =2.5%/2 -> 0.0125 | E83: =1-D83 -> 0.9875 | F83: 0.025 | G83: =1-F83 -> 0.975 | H83: 0.025 | I83: =1-H83 -> 0.975
A85: Catastrophic Event | D85: BURO&MNREM-1 | F85: BURO&MNREM-1 | H85: BURO&MNREM-2
B86: EV Event Cost | D86: =_xll.RiskDiscrete(D87:E87,D88:E88) ->  | F86: =_xll.RiskDiscrete(F87:G87,F88:G88) ->  | H86: =_xll.RiskDiscrete(H87:I87,H88:I88) -> 
B87: Event Cost | D87: 30000 | E87: 0 | F87: 30000 | G87: 0 | H87: 30000 | I87: 0
B88: Event Probability | D88: =1%/2 -> 0.005 | E88: =1-D88 -> 0.995 | F88: 0.01 | G88: =1-F88 -> 0.99 | H88: 0.01 | I88: =1-H88 -> 0.99
A90: New System Requirements/Needs (e.g. for compliance/regulations, etc.)
D91: BURO&Mnsneedinc-1 | F91: BURO&Mnsneedinc-1 | H91: BURO&Mnsneedinc-2
B92: EV Additional Annual Cost | D92: =_xll.RiskDiscrete(D93:E93,D94:E94) ->  | F92: =_xll.RiskDiscrete(F93:G93,F94:G94) ->  | H92: =_xll.RiskDiscrete(H93:I93,H94:I94) -> 
B93: Annual Cost (Additional) | D93: 5000 | E93: 0 | F93: 5000 | G93: 0 | H93: 5000 | I93: 0
B94: Probability of Additional Costs | D94: =10%/2 -> 0.05 | E94: =1-D94 -> 0.95 | F94: 0.1 | G94: =1-F94 -> 0.9 | H94: 0.1 | I94: =1-H94 -> 0.9

Sheet F&W Expense
N2: Color Key:
N3: SME Input
G4: @risk | I4: @risk | K4: @risk | N4: Worksheet Formula
G5: FY21 | I5: FY22 | K5: FY23 | L5: =I5&" and "&K5 -> FY22 and FY23 | N5: @Risk Output
E6: F&W Roll Up (excludes Lower Snake Hatch) | G6: =G9+G14+G18 ->  | I6: =I9+I14+I18 ->  | K6: =K9+K14+K18 ->  | L6: =SUM(G6:K6) ->  | N6: Linked to Summary
N7: @Risk Formula
A9: RiskPert | E9: F&W Direct Program Cost | F9: ='Risk Summary'!C15 -> 244918.8839 | G9: =_xll.RiskPert(F10,F11,F12) ->  | H9: 249000 | I9: =_xll.RiskPert(H10,H11,H12) ->  | J9: 249000 | K9: =_xll.RiskPert(J10,J11,J12) ->  | L9: =_xll.RiskOutput("F&W Direct Program Cost / FY14 and FY15")+(I9+K9) -> 
E10: Min | F10: =F9*0.975 -> 238795.9118 | H10: =H9*0.95 -> 236550 | J10: =J9*0.95 -> 236550
E11: Most Likely | F11: =F9*0.987 -> 241734.9384 | H11: =H9*0.975 -> 242775 | J11: =J9*0.975 -> 242775
E12: Max | F12: =F9 -> 244918.8839 | H12: =H9 -> 249000 | J12: =J9 -> 249000
A14: RiskDiscrete | E14: Reclamation - Leavenworth Complex O&M | F14: 0 | G14: =_xll.RiskDiscrete(F16:G16,F15:G15) ->  | H14: 0 | I14: =_xll.RiskDiscrete(H16:I16,H15:I15) ->  | J14: 0 | K14: =_xll.RiskDiscrete(J16:K16,J15:K15) ->  | L14: =_xll.RiskOutput("Leavenworth Complex O&M Impact on Net Revenue / FY14 and FY15")+(I14+K14) -> 
E15: P | F15: =1%/2 -> 0.005 | G15: =1-F15 -> 0.995 | H15: 0.01 | I15: =1-H15 -> 0.99 | J15: 0.01 | K15: =1-J15 -> 0.99
E16: Value | F16: 1000 | G16: 0 | H16: 1000 | I16: 0 | J16: 1000 | K16: 0
A18: RiskDiscrete | E18: COE - Fish Passage Facilities | F18: 0 | G18: =_xll.RiskDiscrete(F20:G20,F19:G19) ->  | H18: 0 | I18: =_xll.RiskDiscrete(H20:I20,H19:I19) ->  | J18: 0 | K18: =_xll.RiskDiscrete(J20:K20,J19:K19) ->  | L18: =_xll.RiskOutput("COE - Fish Passage Facilities Impact on Net Revenue / FY14 and FY15")+(I18+K18) -> 
E19: P | F19: =1%/2 -> 0.005 | G19: =1-F19 -> 0.995 | H19: 0.01 | I19: =1-H19 -> 0.99 | J19: 0.01 | K19: =1-J19 -> 0.99
E20: Value | F20: 1000 | G20: 0 | H20: 1000 | I20: 0 | J20: 1000 | K20: 0
G23: =G5 -> FY21 | I23: =I5 -> FY22 | K23: =K5 -> FY23 | L23: =L5 -> FY22 and FY23
A24: RiskPert | E24: USF&W Lower Snake Hatcheries | F24: ='Risk Summary'!C16 -> 28999.99999 | G24: =_xll.RiskPert(F25,F26,F27) ->  | H24: ='Risk Summary'!E16 -> 32765.00001 | I24: =_xll.RiskPert(H25,H26,H27) ->  | J24: ='Risk Summary'!G16 -> 32764.99998 | K24: =_xll.RiskPert(J25,J26,J27) ->  | L24: =_xll.RiskOutput("USF&W Lower Snake Hatcheries / FY14 and FY15")+(I24+K24) -> 
E25: Min | F25: =F27*0.95 -> 27549.99999 | H25: =H27*0.9 -> 29488.50001 | J25: =J27*0.9 -> 29488.49998
E26: Most Likely | F26: =F27*0.975 -> 28274.99999 | H26: =H27*0.95 -> 31126.75001 | J26: =J27*0.95 -> 31126.74998
E27: Max | F27: =F24 -> 28999.99999 | H27: =H24 -> 32765.00001 | J27: =J24 -> 32764.99998

Sheet Output
B5: =AVERAGE(B8:B3207) ->  | C5: =AVERAGE(C8:C3207) ->  | G5: =AVERAGE(G8:G3207) ->  | H5: =AVERAGE(H8:H3207) -> 
B6: Net Revenue ($M) | G6: ATC ($M)
A7: Game | B7: 2023 | C7: 2024 | D7: 2025 | G7: =B7 -> 2023 | H7: =C7 -> 2024 | I7: =D7 -> 2025
A8: 1 | B8: =_xll.RiskData('Risk Summary'!J$25,1)/1000 ->  | C8: =_xll.RiskData('Risk Summary'!K$25,1)/1000 ->  | D8: =_xll.RiskData('Risk Summary'!L$25,1)/1000 ->  | G8: =(_xll.RiskData(NR_to_Cash!C$16,1))/1000 ->  | H8: =(_xll.RiskData(NR_to_Cash!D$16,1))/1000 ->  | I8: =(_xll.RiskData(NR_to_Cash!E$16,1))/1000 -> 
A9: 2
A10: 3
A11: 4
A12: 5
A13: 6
A14: 7
A15: 8
A16: 9
A17: 10
A18: 11
A19: 12
A20: 13
A21: 14
A22: 15
A23: 16
A24: 17
A25: 18
A26: 19
A27: 20
A28: 21
A29: 22
A30: 23
A31: 24
A32: 25
A33: 26
A34: 27
A35: 28
A36: 29
A37: 30
A38: 31
A39: 32
A40: 33
A41: 34
A42: 35
A43: 36
A44: 37
A45: 38
A46: 39
A47: 40
A48: 41
A49: 42
A50: 43
A51: 44
A52: 45
A53: 46
A54: 47
A55: 48
A56: 49
A57: 50
A58: 51
A59: 52
A60: 53
A61: 54
A62: 55
A63: 56
A64: 57
A65: 58
A66: 59
A67: 60
A68: 61
A69: 62
A70: 63
A71: 64
A72: 65
A73: 66
A74: 67
A75: 68
A76: 69
A77: 70
A78: 71
A79: 72
A80: 73
A81: 74
A82: 75
A83: 76
A84: 77
A85: 78
A86: 79
A87: 80
A88: 81
A89: 82
A90: 83
A91: 84
A92: 85
A93: 86
A94: 87
A95: 88
A96: 89
A97: 90
A98: 91
A99: 92
A100: 93
A101: 94
A102: 95
A103: 96
A104: 97
A105: 98
A106: 99
A107: 100
A108: 101
A109: 102
A110: 103
A111: 104
A112: 105
A113: 106
A114: 107
A115: 108
A116: 109
A117: 110
A118: 111
A119: 112
A120: 113
A121: 114
A122: 115
A123: 116
A124: 117
A125: 118
A126: 119
A127: 120
A128: 121
A129: 122
A130: 123
A131: 124
A132: 125
A133: 126
A134: 127
A135: 128
A136: 129
A137: 130
A138: 131
A139: 132
A140: 133
A141: 134
A142: 135
A143: 136
A144: 137
A145: 138
A146: 139
A147: 140
A148: 141
A149: 142
A150: 143
A151: 144
A152: 145
A153: 146
A154: 147
A155: 148
A156: 149
A157: 150
A158: 151
A159: 152
A160: 153
A161: 154
A162: 155
A163: 156
A164: 157
A165: 158
A166: 159
A167: 160
A168: 161
A169: 162
A170: 163
A171: 164
A172: 165
A173: 166
A174: 167
A175: 168
A176: 169
A177: 170
A178: 171
A179: 172
A180: 173
A181: 174
A182: 175
A183: 176
A184: 177
A185: 178
A186: 179
A187: 180
A188: 181
A189: 182
A190: 183
A191: 184
A192: 185
A193: 186
A194: 187
A195: 188
A196: 189
A197: 190
A198: 191
A199: 192
A200: 193
A201: 194
A202: 195
A203: 196
A204: 197
... 3009 more rows

Sheet Study Table
B1: A | C1: B | D1: C | E1: D | F1: E | G1: F | H1: G
B2: P-NORM Risk Summary ($000,000) | J2: Source Data
B3: Study Section | C3: Risk Title | D3: Fiscal Year | E3: Forecast | F3: 5th Percentile | G3: Mean | H3: 95th Percentile | J3: ProForma | K3: Risk
A4: 1 | B4: 4.1.2.1.1 | C4: CGS Operations and Maintenance (O&M) | D4: 2023 | E4: =J4/1000 -> 305.499 | F4: =_xll.RiskPercentile($K4,5%)/1000 ->  | G4: =_xll.RiskMean($K4)/1000 ->  | H4: =_xll.RiskPercentile($K4,95%)/1000 ->  | J4: ='Risk Summary'!C8 -> 305499 | K4: ='Risk Summary'!D8 -> 
A5: =A4+1 -> 2 | D5: 2024 | E5: 296.476712 | F5: =_xll.RiskPercentile($K5,5%)/1000 ->  | G5: =_xll.RiskMean($K5)/1000 ->  | H5: =_xll.RiskPercentile($K5,95%)/1000 ->  | J5: ='Risk Summary'!E8 -> 296476.712 | K5: ='Risk Summary'!F8 -> 
A6: =A5+1 -> 3 | D6: 2025 | E6: 304.747847 | F6: =_xll.RiskPercentile($K6,5%)/1000 ->  | G6: =_xll.RiskMean($K6)/1000 ->  | H6: =_xll.RiskPercentile($K6,95%)/1000 ->  | J6: ='Risk Summary'!G8 -> 304747.847 | K6: ='Risk Summary'!H8 -> 
A7: 4 | B7: 4.1.2.1.2 | C7: U.S. Army Corps of Engineers (Corps) and Bureau of Reclamation (Reclamation) O&M | D7: =D4 -> 2023 | E7: 405.52 | F7: =_xll.RiskPercentile($K7,5%)/1000 ->  | G7: =_xll.RiskMean($K7)/1000 ->  | H7: =_xll.RiskPercentile($K7,95%)/1000 ->  | J7: ='Risk Summary'!C9+'Risk Summary'!C10 -> 405520 | K7: ='Risk Summary'!D9+'Risk Summary'!D10 -> 
A8: 5 | D8: =D5 -> 2024 | E8: 419.5100001 | F8: =_xll.RiskPercentile($K8,5%)/1000 ->  | G8: =_xll.RiskMean($K8)/1000 ->  | H8: =_xll.RiskPercentile($K8,95%)/1000 ->  | J8: ='Risk Summary'!E9+'Risk Summary'!E10 -> 419510.0001 | K8: ='Risk Summary'!F9+'Risk Summary'!F10 -> 
A9: 6 | D9: 2025 | E9: 405.5200001 | F9: =_xll.RiskPercentile($K9,5%)/1000 ->  | G9: =_xll.RiskMean($K9)/1000 ->  | H9: =_xll.RiskPercentile($K9,95%)/1000 ->  | J9: ='Risk Summary'!G9+'Risk Summary'!G10 -> 405520.0001 | K9: ='Risk Summary'!H9+'Risk Summary'!H10 -> 
A10: 7 | B10: 4.1.2.1.3 | C10: Conservation Expense | D10: 2023 | E10: 73.36180001 | F10: =_xll.RiskPercentile($K10,5%)/1000 ->  | G10: =_xll.RiskMean($K10)/1000 ->  | H10: =_xll.RiskPercentile($K10,95%)/1000 ->  | J10: ='Risk Summary'!C11+'Risk Summary'!C12 -> 73361.80001 | K10: ='Risk Summary'!D11+'Risk Summary'!D12 -> 
A11: 8 | D11: 2024 | E11: 75.032249 | F11: =_xll.RiskPercentile($K11,5%)/1000 ->  | G11: =_xll.RiskMean($K11)/1000 ->  | H11: =_xll.RiskPercentile($K11,95%)/1000 ->  | J11: ='Risk Summary'!E11+'Risk Summary'!E12 -> 75032.249 | K11: ='Risk Summary'!F11+'Risk Summary'!F12 -> 
A12: 9 | D12: 2025 | E12: 73.36179999 | F12: =_xll.RiskPercentile($K12,5%)/1000 ->  | G12: =_xll.RiskMean($K12)/1000 ->  | H12: =_xll.RiskPercentile($K12,95%)/1000 ->  | J12: ='Risk Summary'!G11+'Risk Summary'!G12 -> 73361.79999 | K12: ='Risk Summary'!H11+'Risk Summary'!H12 -> 
A13: 10 | B13: 4.1.2.1.4 | C13: Power Services Transmission Acquisition and Ancillary Services | D13: 2023 | E13: 86.54310501 | F13: =_xll.RiskPercentile($K13,5%)/1000 ->  | G13: =_xll.RiskMean($K13)/1000 ->  | H13: =_xll.RiskPercentile($K13,95%)/1000 ->  | J13: ='Risk Summary'!C13+'Risk Summary'!C14 -> 86543.10501 | K13: ='Risk Summary'!D13+'Risk Summary'!D14 -> 
A14: 11 | D14: 2024 | E14: 94.57828199 | F14: =_xll.RiskPercentile($K14,5%)/1000 ->  | G14: =_xll.RiskMean($K14)/1000 ->  | H14: =_xll.RiskPercentile($K14,95%)/1000 ->  | J14: ='Risk Summary'!E13+'Risk Summary'!E14 -> 94578.28199 | K14: ='Risk Summary'!F13+'Risk Summary'!F14 -> 
A15: 12 | D15: 2025 | E15: 95.89779898 | F15: =_xll.RiskPercentile($K15,5%)/1000 ->  | G15: =_xll.RiskMean($K15)/1000 ->  | H15: =_xll.RiskPercentile($K15,95%)/1000 ->  | J15: ='Risk Summary'!G13+'Risk Summary'!G14 -> 95897.79898 | K15: ='Risk Summary'!H13+'Risk Summary'!H14 -> 
A16: 13 | B16: 4.1.2.1.5 | C16: Fish & Wildlife Expenses | D16: 2023 | E16: =J16/1000 -> 273.9188839 | F16: =_xll.RiskPercentile($K16,5%)/1000 ->  | G16: =_xll.RiskMean($K16)/1000 ->  | H16: =_xll.RiskPercentile($K16,95%)/1000 ->  | J16: =SUM('Risk Summary'!C15:'Risk Summary'!C16) -> 273918.8839 | K16: =SUM('Risk Summary'!D15:'Risk Summary'!D16) -> 
A17: 14 | D17: 2024 | E17: 301.9996473 | F17: =_xll.RiskPercentile($K17,5%)/1000 ->  | G17: =_xll.RiskMean($K17)/1000 ->  | H17: =_xll.RiskPercentile($K17,95%)/1000 ->  | J17: =SUM('Risk Summary'!E15:'Risk Summary'!E16) -> 301999.6473 | K17: =SUM('Risk Summary'!F15:'Risk Summary'!F16) -> 
A18: 15 | D18: 2025 | E18: 301.6302019 | F18: =_xll.RiskPercentile($K18,5%)/1000 ->  | G18: =_xll.RiskMean($K18)/1000 ->  | H18: =_xll.RiskPercentile($K18,95%)/1000 ->  | J18: =SUM('Risk Summary'!G15:'Risk Summary'!G16) -> 301630.2019 | K18: =SUM('Risk Summary'!H15:'Risk Summary'!H16) -> 
A19: 16 | B19: 4.1.2.1.6 | C19: Interest Expense and Earnings Risk | D19: 2023 | E19: 267.5921644 | F19: =_xll.RiskPercentile($K19,5%)/1000 ->  | G19: =_xll.RiskMean($K19)/1000 ->  | H19: =_xll.RiskPercentile($K19,95%)/1000 ->  | J19: ='Risk Summary'!C17+'Risk Summary'!C18 -> 267592.1644 | K19: ='Risk Summary'!D17+'Risk Summary'!D18 -> 
A20: 17 | D20: 2024 | E20: 258.9461204 | F20: =_xll.RiskPercentile($K20,5%)/1000 ->  | G20: =_xll.RiskMean($K20)/1000 ->  | H20: =_xll.RiskPercentile($K20,95%)/1000 ->  | J20: ='Risk Summary'!E17+'Risk Summary'!E18 -> 258946.1204 | K20: ='Risk Summary'!F17+'Risk Summary'!F18 -> 
A21: 18 | D21: 2025 | E21: 234.5470148 | F21: =_xll.RiskPercentile($K21,5%)/1000 ->  | G21: =_xll.RiskMean($K21)/1000 ->  | H21: =_xll.RiskPercentile($K21,95%)/1000 ->  | J21: ='Risk Summary'!G17+'Risk Summary'!G18 -> 234547.0148 | K21: ='Risk Summary'!H17+'Risk Summary'!H18 -> 
